Workbook

Sheet Background
B2: Clean Energy Implementation Plan Reporting Template
B5: Published: March 10, 2026 Deadline: January 1, 2026
B7: Submission: Submit this workbook and all supporting documentation via Smartsheet.
B8: Questions: Aaron Tam, Austin Scharff, Glenn Blackmon, Energy Office, CETA@commerce.wa.gov.
B10: Enter information in yellow fields
B11: Select drop-down option from list in orange fields
B12: Do not modify grey-shaded fields.
B13: Note: this Excel workbook is macro-enabled to allow for the selection of multiple CETA categories on the Indicators & Forecast tab. If you have security restrictions or have no use for this feature, you do not have to enable macros.
B15: Relevant Clean Energy Transformation Act Statutes and Rules
B16: RCW 19.405.060 Clean energy implementation plan—Compliance criteria—Incremental cost of compliance. (2)(a) By January 1, 2022, and every four years thereafter, each consumer-owned utility must develop and submit to the department a four-year clean energy implementation plan for the standards established under RCW 19.405.040(1) and 19.405.050(1) that: (i) Proposes interim targets for meeting the standard under RCW 19.405.040(1) during the years prior to 2030 and between 2030 and 2045, as well as specific targets for energy efficiency, demand response, and renewable energy; (ii) Is informed by the consumer-owned utility's clean energy action plan developed under RCW 19.280.030(1) or other ten-year plan developed under RCW 19.280.030(5); (iii) Is consistent with subsection (4) of this section; and (iv) Identifies specific actions to be taken by the consumer-owned utility over the next four years, consistent with the utility's long-range resource plan and resource adequacy requirements, that demonstrate progress towards meeting the standards under RCW 19.405.040(1) and 19.405.050(1) and the interim targets proposed under (a)(i) of this subsection. The specific actions identified must be informed by the consumer-owned utility's historic performance under median water conditions and resource capability and by the consumer-owned utility's participation in centralized markets. In identifying specific actions in its clean energy implementation plan, the consumer-owned utility may also take into consideration any significant and unplanned loss or addition of load it experiences. (b) The governing body of the consumer-owned utility must, after a public meeting, adopt the consumer-owned utility's clean energy implementation plan. The clean energy implementation plan must be submitted to the department and made available to the public. The governing body may adopt more stringent targets than those proposed by the consumer-owned utility and periodically adjust or expedite timelines if it can be demonstrated that such targets or timelines can be achieved in a manner consistent with the following: (i) Maintaining and protecting the safety, reliable operation, and balancing of the electric system; (ii) Planning to meet the standards at the lowest reasonable cost, considering risk; (iii) Ensuring that all customers are benefiting from the transition to clean energy: Through the equitable distribution of energy and nonenergy benefits and reduction of burdens to vulnerable populations and highly impacted communities; long-term and short-term public health and environmental benefits and reduction of costs and risks; and energy security and resiliency; and (iv) Ensuring that no customer or class of customers is unreasonably harmed by any resulting increases in the cost of utility-supplied electricity as may be necessary to comply with the standards. (4)(a) A consumer-owned utility must be considered to be in compliance with the standards under RCW 19.405.040(1) and 19.405.050(1) if, over the four-year compliance period, the average annual incremental cost of meeting the standards or the interim targets established under subsection (2) of this section meets or exceeds a two percent increase of the consumer-owned utility's retail revenue requirement above the previous year. All costs included in the determination of cost impact must be directly attributable to actions necessary to comply with the requirements of RCW 19.405.040 and 19.405.050. (b) If a consumer-owned utility relies on (a) of this subsection as a basis for compliance with the standard under RCW 19.405.040(1), and it has not met eighty percent of its annual retail electric load using electricity from renewable resources and nonemitting electric generation, then it must demonstrate that it has maximized investments in renewable resources and nonemitting electric generation prior to using alternative compliance options allowed under RCW 19.405.040(1)(b). WAC 194-40-200 Clean energy implementation plan. (1) Specific actions. Each utility must identify in each CEIP the specific actions the utility will take during the next interim performance period or GHG neutral compliance period to demonstrate progress toward meeting the standards under RCW 19.405.040(1) and 19.405.050(1) and the interim targets under subsection (2) of this section and the specific tar gets under subsection (3) of this section. Specific actions must be consistent with the requirements of RCW 19.405.060 (2)(a)(iv). (2) Interim target. The CEIP must establish an interim target for the percentage of retail load to be served using renewable and nonemitting resources during the period covered by the CEIP. The interim target must demonstrate progress toward meeting the standards under RCW 19.405.040(1) and 19.405.050(1), if the utility is not already meeting the relevant standard. (3) Specific targets. The CEIP must establish specific targets, for the interim performance period or GHG neutral compliance period covered by the CEIP, for each of the following categories of resources: (a) Energy efficiency. (i) The CEIP must establish a target for the amount, expressed in megawatt-hours of first-year savings, of energy efficiency resources expected to be acquired during the period. The energy efficiency target must comply with WAC 194-40-330(1). (ii) A utility may update its CEIP to incorporate a revised energy efficiency target to match a biennial conservation target established by the utility under RCW 19.285.040 (1)(b) and WAC 194-37-070. (b) Demand response resources. The CEIP must specify a target for the amount, expressed in megawatts, of demand response resources to be acquired during the period. The demand response target must comply with WAC 194-40-330(2). (c) Renewable energy. The utility's target for renewable energy must identify the quantity in megawatt-hours of renewable electricity to be used in the period. (4) Specific actions to ensure equitable transition. To meet the requirements of RCW 19.405.040(8), the CEIP must, at a minimum: (a) Identify each highly impacted community, as defined in RCW 19.405.020(23), and its designation as either: (i) A community designated by the department of health based on cumulative impact analyses; or (ii) A community located in census tracts that are at least partially on Indian country. (b) Identify vulnerable populations based on the adverse socioeconomic factors and sensitivity factors developed through a public process established by the utility and describe and explain any changes from the utility's previous CEIP, if any; (c) Report the forecasted distribution of energy and nonenergy costs and benefits for the utility's portfolio of specific actions, including impacts resulting from achievement of the specific targets established under subsection (3) of this section. The report must: (i) Include one or more indicators applicable to the utility's service area and associated with energy benefits, nonenergy benefits, reduction of burdens, public health, environment, reduction in cost, energy security, or resiliency developed through a public process as part of the utility's long-term planning, for the provisions in RCW 19.405.040(8); (ii) Identify the expected effect of specific actions on highly impacted communities and vulnerable populations and the general location, if applicable, timing, and estimated cost of each specific action. If applicable, identify whether any resource will be located in highly impacted communities or will be governed by, serve, or otherwise benefit highly impacted communities or vulnerable populations in part or in whole; and (iii) Describe how the specific actions in the CEIP are consistent with, and informed by, the utility's longer-term strategies based on the analysis in RCW 19.280.030 (1)(k) and clean energy action plan in RCW 19.280.030(1)(l) from its most recent integrated resource plan, if applicable. (d) Describe how the utility intends to reduce risks to highly impacted communities and vulnerable populations associated with the transition to clean energy. (5) Use of alternative compliance options. The CEIP must identify any planned use during the period of alternative compliance options, as provided for in RCW 19.405.040 (1)(b). (6) The CEIP must be consistent with the most recent integrated resource plan or resource plan, as applicable, prepared by the utility under RCW 19.280.030. (7) The CEIP must be consistent with the utility's clean energy action plan developed under RCW 19.280.030(1) or other ten-year plan developed under RCW 19.280.030(5). (8) The CEIP must identify the resource adequacy standard and measurement metrics adopted by the utility under WAC 194-40-210 and used in establishing the targets in its CEIP. (9) If the utility intends to comply using the two percent incremental cost approach specified in WAC 194-40-230, the CEIP must include the information required in WAC 194-40-230(3) and, if applicable, the demonstration required in WAC 194-40-350(2). (10) Any utility that is not subject to RCW 19.280.030(1) may meet the requirements of this section through a simplified reporting form provided by commerce.

Sheet Contact Info
B2: Utility Name & Contact Information
B5: Note: if you list multiple contacts, please separate their information by a comma and a space.
B6: Report Year | C6: 2026
B7: Compliance Period | C7: =C6 & "-" & C6+3 -> 2026-2029
B8: Utility Name | C8: Clark County PUD #1
B9: Report Date | C9: 2025-11-18
B10: Contact Name | C10: Matt Babbitts
B11: Phone Number | C11: (360)992-3365
B12: Email | C12: mbabbitts@clarkpud.com
B13: Web address of published CEIP | C13: https://www.clarkpublicutilities.com/about-cpu/public-documents/ceta/ceip/
B14: Are you a "qualifying utility" under the EIA? | C14: Yes
B15: Are you a BPA "full requirements" customer? | C15: No

Sheet Targets
B2: Targets
B5: Interim targets: percentage of retail load to be served using renewable and nonemitting resources (WAC 194-40-200(2))
B6: Utilities with less than 25,000 customers only need to complete cells H8 and H9 in the interim targets table below.
B7: Clean Energy Type | C7: Units | D7: 2026 | E7: 2027 | F7: 2028 | G7: 2029 | H7: 4-year Period
B8: Renewable | C8: % | D8: 0.58 | E8: 0.58 | F8: 0.64 | G8: 0.73 | H8: =SUM(Interim_Targets_Input[[#This Row],[2026]:[2029]])/4 -> 0.6325
B9: Nonemitting | C9: % | D9: 0.07 | E9: 0.07 | F9: 0.07 | G9: 0.09 | H9: =SUM(Interim_Targets_Input[[#This Row],[2026]:[2029]])/4 -> 0.075
B10: Total | D10: =D8+D9 -> 0.65 | E10: =E8+E9 -> 0.65 | F10: =F8+F9 -> 0.71 | G10: =G8+G9 -> 0.82 | H10: =H8+H9 -> 0.7075
B12: Describe how the target demonstrates progress toward meeting the 2030 and 2045 CETA standards (WAC 194-40-200(2)). | C12: Clark Public Utilities is making substantial progress towards meeting the CETA 2030 greenhouse gas neutral standard. The 2029 carbon-free percentage of retail load is estimated to be 82%, which exceeds the 2030 minimum threshold under CETA.
B14: Specific targets (WAC 194-40-200(3))
B15: Utilities with less than 25,000 customers only need to complete cells H17-19 in the specific targets table below.
B16: Resource Category | C16: Units | D16: 2026 | E16: 2027 | F16: 2028 | G16: 2029 | H16: 4-year Period
B17: Renewable Energy | C17: MWh to be used over the interim performance period | D17: 2749311 | E17: 2769642 | F17: 3087398 | G17: 3544982 | H17: =SUM(Specific_Targets_Input[[#This Row],[2026]:[2029]]) -> 12151333
B18: Energy Efficiency | C18: MWh to be acquired over the interim performance period | D18: 40447 | E18: 41213 | F18: 34603 | G18: 38560 | H18: =SUM(Specific_Targets_Input[[#This Row],[2026]:[2029]]) -> 154823
B19: Demand Response | C19: MW to be acquired over the interim performance period | D19: 9.96 | E19: 10.12 | F19: 10.3 | G19: 10.52 | H19: =SUM(Specific_Targets_Input[[#This Row],[2026]:[2029]]) -> 40.9
B22: Energy efficiency assessment methodology details
B23: Conservation Assessment Method | C23: Conservation Potential Assessment
B24: Hyperlink to Relevant Assessment | C24: https://www.clarkpublicutilities.com/wp-content/uploads/2025/11/Clark-Public-Utilities-2025-CPA-Final-Report.pdf
B25: Notes | C25: Lighthouse Consulting completed our 2025 CPA this year which shows all cost-effective energy efficiency opportunities by customer class, over a variety of time periods, including the CEIP four-year period. The modeling software used by Lighthouse was unable to model the residential behavorial program savings for 2028 and 2029 due to the program having a one-year measure life. Clark Public Utilities estimated the behavorial program savings for those two years. Therefore, the total available savings detailed in the CPA are less than the annual energy efficiency targets in the CEIP for years 2028 and 2029.
B27: Demand response assessment methodology details
B28: Did your utility conduct a demand response assessment? | C28: Yes
B29: Please briefly describe your demand response assessment findings. Please describe if there are DR opportunities for particular customer classes or barriers to utilizing DR in your service territory. Please describe which DR technologies were found to be cost-effective, reliable, and feasible. | C29: Lighthouse Consulting developed our 2025 DRPA this year which shows all cost-effective demand response opportunities by customer class, over a variety of time periods. Residential smart thermostat DR, industrial demand curtailment, and residential time-of-use pricing were the only products identified as cost effective and reliable, with a benefit-cost ratio greater than 1.0. The DRPA found no technologies to be "feasible" which means "possible to do easily or conveniently" because all DR technologies have a varying degree of complexitity, require broad customer participation to be impactful, and require specific utility conditions to be cost-effective.
B30: Hyperlink to Relevant Assessment | C30: https://www.clarkpublicutilities.com/wp-content/uploads/2025/11/Clark-Public-Utilities-2025-DRPA-Final-Report.pdf
B31: Notes | C31: Clark Public Utilities annual demand response targets were developed by evaluating the potential for existing and planned demand response programs.

Sheet Indicators & Forecast
C2: Indicators & Forecast
C5: Specific actions to ensure equitable transition (WAC 194-40-200(1)(4))
C6: Enter information in the yellow fields below. Each indicator should correspond with the information entered in the same row. See the Menu of Ideas for examples. You can leave any unused fields blank or delete any unused rows. If you need to expand the table, you can drag the boundary of the data table by clicking and dragging the bottom right corner downward.
B7: Index | C7: Ind_ID | D7: Indicator | E7: CETA Category | F7: Specific Action 1 | G7: Specific Action 2 | H7: Specific Action 3 | I7: Specific Action 4 | J7: Outcome Metric 1 | K7: Outcome Metric 2 | L7: Outcome Metric 3 | M7: Outcome Metric 4 | N7: Outcome Metric 5 | O7: How will the indicator and its associated metrics look different across the service territory in four years after taking the specific actions?
B8: 1 | C8: =CEIP_ID & "_" & $B8 -> 2026_23_1 | D8: Increased energy affordability and increased access to clean energy. | E8: Reduction of Burdens to Vulnerable Populations and Highly Impacted Communities | F8: Develop at least one 100% low-income, 199 kilowatt (kW), community solar project over the CEIP four-year period. | G8: Allocate all solar energy generated by the new low-income community solar project to the utility's Operation Warm Heart program using a virtual net metering design that implements the retail rate value for each kWh of solar energy. | J8: Number of new low-income community solar projects developed. Each 199kW low-income community solar project results in ~$20,000 in new annual funding to the utility's Operation Warm Heart energy assistance program. | K8: Number of additional solar megawatt hours (MWh) in Clark Public Utilities resource mix. | L8: Number of additional energy assistance grants provided by Operation Warm Heart due to increased funding from new low-income community solar projects. | O8: By developing additional low-income community solar projects we will provide additional, ongoing, energy assistance funding to low-income and vulnerable population households, therefore, reducing energy burden across our service territory. The specifc action of developing new low-income community solar projects also increases access to clean energy for named communities.
B9: 2 | C9: =CEIP_ID & "_" & $B9 -> 2026_23_2 | D9: More access to clean energy. | E9: Environmental Benefits | F9: Promote increased customer participation in the utility's new distributed energy resource program, Net Billing. The Net Billing program allows customers to install up to one megawatt (MW) of renewable resources. Promotion activities will focus customer engagement at community and industry events. | J9: Number of renewable resource megawatts (MW) interconnected by customers participating in the Net Billing program. | K9: Number of new customers participating in the Net Billing program. | O9: By promoting customer participation in the Net Billing program we will increase the amount of renewable energy generated in our service trerritory over the four-year CEIP period.
B10: 3 | C10: 2026_23_3 | D10: Increased grid resilience, and increased public participation in utility programs from highly impacted communities and vulnerable populations. | E10: Energy Security and Resiliency | F10: Create new demand response and load management programs available to all customers, but specifically designed for participation by vulnerable populations and low-income custmers. | G10: Continue funding the Northwest Energy Efficiency Alliance's (NEEA) End Use Load Flex project to develop a portfolio of demand response and load management program opportunities. | J10: Number of new demand response and load management programs developed during the CEIP four-year period that include participation options for named communities. | O10: There will be more demand response and load management programs designed to encourage participation by named communities.
B11: 4 | C11: 2026_23_4 | D11: Increased energy affordability for low-income households and named communities. | E11: Reduction of Burdens to Vulnerable Populations and Highly Impacted Communities | F11: Implement the recently piloted new CETA compliant, energy assistance programs that are available to all customers who meet the CETA definition of low-income households. | G11: Promote new energy assisatnce program opportunities to CETA defined low-income customers. | J11: Number of CETA defined low-income customers who participate in the new utility energy assistance program(s). | K11: Number of new energy assistance program(s) offered to CETA defined low-income customers. | L11: Reduction of energy burden across our customer base. | O11: There will be an increased opportunity to receive energy assistance funding for CETA defined low-income customers. There will be an increase in the total energy assistance funding provided by the utility.
B12: 5 | C12: 2026_23_5
B13: 6 | C13: 2026_23_6
B14: 7 | C14: =CEIP_ID & "_" & $B14 -> 2026_23_7
B15: 8 | C15: 2026_23_8
B16: 9 | C16: =CEIP_ID & "_" & $B16 -> 2026_23_9
B17: 10 | C17: =CEIP_ID & "_" & $B17 -> 2026_23_10

Sheet Specific Actions & Equity
F2: Specific Actions & Equity
F5: Specific actions to ensure equitable transition (WAC 194-40-200(1)(4))
F6: Click "Data">"Refresh All" to auto-populate the specific actions list below with the specific actions from the previous spreadsheet tab. Enter information in the yellow fields. Each specific action should correspond with information entered in the same row. Please delete any unused rows once you finalize your report. | R6: Please enter "N/A" where the question is not applicable to the specific action.
B7: SA_ID | C7: SA_Index | D7: Specific Action | F7: SA_ID | G7: Specific Action | H7: Long Description | I7: Resource Category | J7: Program Type | K7: Program Name | L7: Input Metric 1 | M7: Input Metric 2 | N7: Input Metric 3 | O7: Output Metric 1 | P7: Output Metric 2 | Q7: Output Metric 3 | R7: What is the expected effect of this specific action on highly impacted communities and vulnerable populations? | S7: How will the specific action and its resources be governed by (if applicable), serve, or benefit highly impacted communities or vulnerable populations, if at all? | T7: What are the risks to highly impacted communities and vulnerable population associated with the clean energy transition? How does the utility intend to reduce these risks through this specific action (if applicable)? | U7: Will resources be located in highly impacted communities or vulnerable populations? (Y/N/Not Applicable) | V7: What is the general location of this specific action and its resources (if applicable)? | W7: What is the timing of this specific action? | X7: What is the estimated cost of this specific action? | Y7: What other benefits does the specific action bring that isn't covered by the listed metrics? (optional)
B8: 2026_23_1_1 | C8: 1 | D8: Develop at least one 100% low-income, 199 kilowatt (kW), community solar project over the CEIP four-year period. | F8: =Auto_populate_Specific_Actions[[#This Row],[SA_ID]] -> 2026_23_1_1 | G8: =Auto_populate_Specific_Actions[[#This Row],[Specific Action]] -> Develop at least one 100% low-income, 199 kilowatt (kW), community solar project over the CEIP four-year period. | H8: Distributed Renewable Energy Resource Program Development: In 2024 the Clark Public Utilities Board of Commissioners approved a new customer distributed energy resource (DER) program, the Net Billing program. Under Net Billing, customer generators can install up to 1 MW of distributed renewable generation. Renewable energy generated and consumed onsite receives the retail rate value under the program, and any renewable generation delivered back to the utility is compensated using our Avoided Cost Rate. The Net Billing program is offered in addition to the mandated Net Metering DER program. The new Net Billing program will be promoted throughout the 2026-2029 CEIP period. Net Billing projects are a customer decision, and we do not have direct control over the volume of new customer projects, but highlighting the benefits of the program can increase customer participation over the next four years. In 2024 the Clark Public Utilities Board of Commissioners approved development of a new community solar project in 2025 – 2026 and to allocate 100% of the project’s capacity to low-income customers. Clark Public Utilities staff is currently coordinating with potential site host partners to develop the next community solar project in 2026. Our low-income community solar design, which has previously been approved by WSU Energy, utilizes our internal energy assistance program, Operation Warm Heart as the “low-income participant”. The design uses virtual net metering to provide the residential retail rate value for each kilowatt hour of solar energy produced, and annually the solar energy is monetized and deposited into the Operation Warm Heart program. Once the funds have been deposited into Operation Warm Heart they are distributed as energy assistance grants to our most vulnerable eligible customers. | I8: Renewable Energy | J8: Community Solar | K8: Community Solar | L8: Utility resources; staff time, adminstrative resources, and capital financing | M8: Site host partner for each low-income community solar project | O8: Low-income subscription status of the community soalr project(s) | P8: Succesful development of the community solar project(s) | R8: Each new 199kW low-income community solar project generates ~$20,000 in annual funding that goes into the Operation Warm Heart energy assistance program. Community solar projects have a life of 25 years and therefore each new project generates ~$500,000 in energy assistance funding over its life. Therefore, the epxected effect is the creation of up to $500,000 in energy assistance funding, per project, that will be distributed to vulnerable, low-income customers. | S8: All utility actions, including the specific actions within the CEIP, can only be approved (aka governed) by the three elected utility Comissioners, but all utility customers have an opportunity to vote for their utility Commissioners during local elections. Developing new low-income community solar project(s) directly benefits are most vulnerable customers because each kilowatt hour of solar energy generated by the system(s) is monetized and deposited into the utility's Operation Warm Heart program. Operaton Warm Heart distributes energy assistance grants to our most vulnerbale customers, and every dollar that goes into Operation Warm Heart goes out as energy assistance funds. No Operation Warm Heart funding is used for utility staff time or adminstrative expenses. | T8: Creating any new utility programs comes with new costs, and the specifc actions included in this CEIP will add costs to the utility. Therefore, there is a risk of the utility implementing a rate icnreases due to CETA mandates. However, we have developed specifc actions, in coordination with public feedback, that aim to reduce risks to named communities and strecth existing utility resources to a degree that minimizes new incurred costs, and utlimately creates a low-risk transition to a clean energy future for all customers. | U8: Yes | V8: Each new community solar project requires a site host partner to host the physical project as an in-kind match for being a formal project partner. We are currently working with interested customers that have the ability to host a future community solar project. Each of those potential site host partners are located in highly impacted communities. | W8: The CEIP four-year period (2026 - 2029) | X8: $447,750 for each 199kW low-income community solar project, plus utility staff time. | Y8: Reduced energy bills and increased energy security for named community customers.
B9: 2026_23_1_2 | C9: 2 | D9: Allocate all solar energy generated by the new low-income community solar project to the utility's Operation Warm Heart program using a virtual net metering design that implements the retail rate value for each kWh of solar energy. | F9: =Auto_populate_Specific_Actions[[#This Row],[SA_ID]] -> 2026_23_1_2 | G9: =Auto_populate_Specific_Actions[[#This Row],[Specific Action]] -> Allocate all solar energy generated by the new low-income community solar project to the utility's Operation Warm Heart program using a virtual net metering design that implements the retail rate value for each kWh of solar energy. | H9: Distributed Renewable Energy Resource Program Development: In 2024 the Clark Public Utilities Board of Commissioners approved a new customer distributed energy resource (DER) program, the Net Billing program. Under Net Billing, customer generators can install up to 1 MW of distributed renewable generation. Renewable energy generated and consumed onsite receives the retail rate value under the program, and any renewable generation delivered back to the utility is compensated using our Avoided Cost Rate. The Net Billing program is offered in addition to the mandated Net Metering DER program. The new Net Billing program will be promoted throughout the 2026-2029 CEIP period. Net Billing projects are a customer decision, and we do not have direct control over the volume of new customer projects, but highlighting the benefits of the program can increase customer participation over the next four years. In 2024 the Clark Public Utilities Board of Commissioners approved development of a new community solar project in 2025 – 2026 and to allocate 100% of the project’s capacity to low-income customers. Clark Public Utilities staff is currently coordinating with potential site host partners to develop the next community solar project in 2026. Our low-income community solar design, which has previously been approved by WSU Energy, utilizes our internal energy assistance program, Operation Warm Heart as the “low-income participant”. The design uses virtual net metering to provide the residential retail rate value for each kilowatt hour of solar energy produced, and annually the solar energy is monetized and deposited into the Operation Warm Heart program. Once the funds have been deposited into Operation Warm Heart they are distributed as energy assistance grants to our most vulnerable eligible customers. | I9: Renewable Energy | J9: Community Solar | K9: Community Solar | L9: Utility resources; staff time | O9: All energy generated by the new community solar project(s) is monetized via virtual net metering and deposited into the Operation Warm Heart account annually. | R9: Each new 199kW low-income community solar project generates ~$20,000 in annual funding that goes into the Operation Warm Heart energy assistance program. Community solar projects have an expected life of 25 years which results in each new project generating ~$500,000 in energy assistance funding over its lifetiem. Therefore, the expected effect is the creation of up to $500,000 in energy assistance funding, per project, that will be distributed to vulnerable, low-income customers. | S9: All utility actions, including the specific actions within the CEIP, can only be approved (aka governed) by the three elected utility Comissioners, but all utility customers have an opportunity to vote for their utility Commissioners during local elections. Developing new low-income community solar project(s) directly benefits are most vulnerable customers because each kilowatt hour of solar energy generated by the system(s) is monetized and deposited into the utility's Operation Warm Heart program. Operaton Warm Heart distributes energy assistance grants to our most vulnerbale customers, and every dollar that goes into Operation Warm Heart goes out as energy assistance funds. No Operation Warm Heart funding is used for utility staff time or adminstrative expenses. | T9: Creating any new utility programs comes with new costs, and the specifc actions included in this CEIP will add costs to the utility. Therefore, there is a risk of the utility implementing a rate icnreases due to CETA mandates. However, we have developed specifc actions, in coordination with public feedback, that aim to reduce risks to named communities and strecth existing utility resources to a degree that minimizes new incurred costs, and utlimately creates a low-risk transition to a clean energy future for all customers. | U9: Yes | V9: Not applicable | W9: The CEIP four-year period (2026 - 2029) | X9: No hard costs, only utility staff time. | Y9: Not applicable
B10: 2026_23_2_1 | C10: 1 | D10: Promote increased customer participation in the utility's new distributed energy resource program, Net Billing. The Net Billing program allows customers to install up to one megawatt (MW) of renewable resources. Promotion activities will focus customer engagement at community and industry events. | F10: =Auto_populate_Specific_Actions[[#This Row],[SA_ID]] -> 2026_23_2_1 | G10: =Auto_populate_Specific_Actions[[#This Row],[Specific Action]] -> Promote increased customer participation in the utility's new distributed energy resource program, Net Billing. The Net Billing program allows customers to install up to one megawatt (MW) of renewable resources. Promotion activities will focus customer engagement at community and industry events. | H10: Distributed Renewable Energy Resource Program Development: In 2024 the Clark Public Utilities Board of Commissioners approved a new customer distributed energy resource (DER) program, the Net Billing program. Under Net Billing, customer generators can install up to 1 MW of distributed renewable generation. Renewable energy generated and consumed onsite receives the retail rate value under the program, and any renewable generation delivered back to the utility is compensated using our Avoided Cost Rate. The Net Billing program is offered in addition to the mandated Net Metering DER program. The new Net Billing program will be promoted throughout the 2026-2029 CEIP period. Net Billing projects are a customer decision, and we do not have direct control over the volume of new customer projects, but highlighting the benefits of the program can increase customer participation over the next four years. In 2024 the Clark Public Utilities Board of Commissioners approved development of a new community solar project in 2025 – 2026 and to allocate 100% of the project’s capacity to low-income customers. Clark Public Utilities staff is currently coordinating with potential site host partners to develop the next community solar project in 2026. Our low-income community solar design, which has previously been approved by WSU Energy, utilizes our internal energy assistance program, Operation Warm Heart as the “low-income participant”. The design uses virtual net metering to provide the residential retail rate value for each kilowatt hour of solar energy produced, and annually the solar energy is monetized and deposited into the Operation Warm Heart program. Once the funds have been deposited into Operation Warm Heart they are distributed as energy assistance grants to our most vulnerable eligible customers. | I10: Renewable Energy | J10: Distributed Solar and Storage | K10: Net Billing | L10: Utility resources; staff time, adminstrative resources, and community engagement | O10: Measure customer program participation in the Net Billing program. | P10: Measure the total installed capacity of distributed renewable generation in the Net Billing program. | R10: The Net Billing program is unlikely to include vulnerable population customers since it is designed for commerical and industrial utility customers, but businesses lcoated in highly impacted communities might particpate in the program. All Net billing projects increase the amount of clean, renewable energy in our community and therefore provides a direct benefit to all utility customers, including named communities, in the form of reduced electric sector greenhouse gas emissions. | S10: The primary benefit to vulnerable populations and highly impacted communities from the Net Billing program is reduced electric sector greenhosue gas emissions in our community. | T10: The primary risk to highly impacted communities and vulnerable populations with the clean energy transition is increased utility costs that could cause rate increases. The Net Billing program helps reduce that risk because it allows customers to invest in distributed renewable generation up to 1 megawatt (MW) which in turn reduces the amount of new carbon free resources the utility must procure or develop. | U10: N/A | V10: Our entire service territory as the Net Billing program is avilable to all customers. | W10: The CEIP four-year period (2026 - 2029) | X10: Estimated to be less than $50,000, plus utility staff time. | Y10: N/A
B11: 2026_23_2_2 | C11: 2 | D11: Develop new marketing materials to promote the Net Billing program. | F11: =Auto_populate_Specific_Actions[[#This Row],[SA_ID]] -> 2026_23_2_2 | G11: =Auto_populate_Specific_Actions[[#This Row],[Specific Action]] -> Develop new marketing materials to promote the Net Billing program. | H11: Distributed Renewable Energy Resource Program Development: In 2024 the Clark Public Utilities Board of Commissioners approved a new customer distributed energy resource (DER) program, the Net Billing program. Under Net Billing, customer generators can install up to 1 MW of distributed renewable generation. Renewable energy generated and consumed onsite receives the retail rate value under the program, and any renewable generation delivered back to the utility is compensated using our Avoided Cost Rate. The Net Billing program is offered in addition to the mandated Net Metering DER program. The new Net Billing program will be promoted throughout the 2026-2029 CEIP period. Net Billing projects are a customer decision, and we do not have direct control over the volume of new customer projects, but highlighting the benefits of the program can increase customer participation over the next four years. In 2024 the Clark Public Utilities Board of Commissioners approved development of a new community solar project in 2025 – 2026 and to allocate 100% of the project’s capacity to low-income customers. Clark Public Utilities staff is currently coordinating with potential site host partners to develop the next community solar project in 2026. Our low-income community solar design, which has previously been approved by WSU Energy, utilizes our internal energy assistance program, Operation Warm Heart as the “low-income participant”. The design uses virtual net metering to provide the residential retail rate value for each kilowatt hour of solar energy produced, and annually the solar energy is monetized and deposited into the Operation Warm Heart program. Once the funds have been deposited into Operation Warm Heart they are distributed as energy assistance grants to our most vulnerable eligible customers. | I11: Renewable Energy | J11: Distributed Solar and Storage | K11: Net Billing | L11: Utility resources; staff time and adminstrative resources | O11: Utility presense at indsutry and community events. | R11: The promotion activites encouraging customer participation in the Net Billing program will result in a increase of distributed renewable generation which benefits all customers, including vulnerable populations and highly impacted communities. | S11: The promotion activites encouraging customer participation in the Net Billing program will result in a increase of distributed renewable generation which benefits all customers, including vulnerable populations and highly impacted communities. | T11: The primary risk to highly impacted communities and vulnerable populations with the clean energy transition is increased utility costs resulting in rate increases. The Net Billing program helps reduce that risk because it allows customers to invest in distributed renewable generation up to 1 megawatt(MW) which in turn reduces the amount of new carbon free resources the utility must procure or develop. | U11: N/A | V11: Community and indsutry events within Clark County, WA. | W11: The CEIP four-year period (2026 - 2029) | X11: Estimated to be less than $50,000, plus utility staff time. | Y11: N/A
B12: 2026_23_3_1 | C12: 1 | D12: Create new demand response and load management programs avilable to all customers, but specifically designed for participation by named communities. | F12: =Auto_populate_Specific_Actions[[#This Row],[SA_ID]] -> 2026_23_3_1 | G12: =Auto_populate_Specific_Actions[[#This Row],[Specific Action]] -> Create new demand response and load management programs avilable to all customers, but specifically designed for participation by named communities. | H12: Demand Response and Load Management Program Development: In 2024 Clark Public Utilities began piloting two different demand response (DR) and load management programs. DR and load management programs bring value to the utility and our customers. These programs provide an opportunity for customers to become partners, and to work together to achieve a clean energy transition. Clark Public Utilities will work to expand our DR and load management program offerings over the next CEIP period by deploying an online marketplace that offers midstream rebates to customers who purchase eligible products, as well as a streamlined enrollment process into the new DR programs. We will look for opportunities to create participation options for both vulnerable populations and customers located in highly impacted communities. | I12: Demand Response | J12: Demand Response | K12: The specific actions calls for the creation of new demand response programs. Those programs have not yet been named because they have not yet been created. | L12: Utility resources; staff time and program budgets to support the new demand response programs. | O12: Measure the volume of new demand response programs that include participation options for vulnerable populations and highly impacted communities. | P12: Measure customer participants who are either part of a vulnerable population, or live in a highly impacted community, in the new demand response programs. | R12: The expected effect of this specifc action is the creation of additional and new demand response program aprticipation options for vulnerable populations and customers who live in a highly impacted community. | S12: The creation of new demand response programs that are designed to include custoemrs from named communities provides a direct benefit in the form of a program participation financial incentive. Additionally, demand response programs help the utility avoid costs, and that benefits all utility customers. | T12: The primary risk to highly impacted communities and vulnerable populations with the clean energy transition is increased utility costs resulting in rate increases. New demand repsonse program reduce that risk as they help the utility avoid costs which reduces the likelyhood of rate increases. | U12: N/A | V12: Not applicable | W12: The CEIP four-year period (2026 - 2029) | X12: Unknown, estimated to be $200,000 - $500,000 (note: estimating the costs to create new demand reponse programs is very difficult since these programs are generally implemented by third party vendors).
B13: 2026_23_3_2 | C13: 2 | D13: Continue funding the Northwest Energy Efficiency Alliance's (NEEA) End Use Load Flex project to develop a portfolio of demand response and load management program opportunities. | F13: =Auto_populate_Specific_Actions[[#This Row],[SA_ID]] -> 2026_23_3_2 | G13: =Auto_populate_Specific_Actions[[#This Row],[Specific Action]] -> Continue funding the Northwest Energy Efficiency Alliance's (NEEA) End Use Load Flex project to develop a portfolio of demand response and load management program opportunities. | H13: Demand Response and Load Management Program Development: In 2024 Clark Public Utilities began piloting two different demand response (DR) and load management programs. DR and load management programs bring value to the utility and our customers. These programs provide an opportunity for customers to become partners, and to work together to achieve a clean energy transition. Clark Public Utilities will work to expand our DR and load management program offerings over the next CEIP period by deploying an online marketplace that offers midstream rebates to customers who purchase eligible products, as well as a streamlined enrollment process into the new DR programs. We will look for opportunities to create participation options for both vulnerable populations and customers located in highly impacted communities. | I13: Demand Response | J13: Demand Response | K13: Northwest Energy Efficiency Alliance (NEEA)- End Use Load Flex | L13: Utility funding. | M13: Allocate one utility staff member to be on the End Use Load Flex Steering Committee to represent Clark Public Utilities. | O13: Utility staff attendance at the End Use Load Flex monthly Steering Committee meetings. | R13: The expected outcome of NEEA's End Use Load Flex project is the development of a portfolio of cost-effective and relibale demand repsonse technologies. Clark Public Utilities will leverage that work product to enhance our demand repsonse program offerings and create new participation opportunities for vulnerable population and highly impacted community customers. | S13: This specifc actions only benefits vulnerable population and highly imacpted community customers after the CEIP period ends because the final NEEA deliverable will not be available until the end of 2029. This specifc action is an investment now to ensure a succesful future of demand response program offerings for named community customers. | T13: The primary risk to highly impacted communities and vulnerable populations with the clean energy transition is increased utility costs resulting in rate increases. New demand repsonse program reduce that risk as they help the utility avoid costs which reduces the likelyhood of rate increases. | U13: N/A | V13: Not applicable | W13: The CEIP four-year period (2026 - 2029) | X13: $981,160, plus utility staff time. | Y13: Clark Public Utilities' financial support of this NEEA project provides regional value to the electric utility sector.
B14: 2026_23_4_1 | C14: 1 | D14: Create new CETA compliant, energy assistance programs that are available to all customers who meet the CETA definition of low-income households. | F14: =Auto_populate_Specific_Actions[[#This Row],[SA_ID]] -> 2026_23_4_1 | G14: =Auto_populate_Specific_Actions[[#This Row],[Specific Action]] -> Create new CETA compliant, energy assistance programs that are available to all customers who meet the CETA definition of low-income households. | H14: Energy Assistance Program Development: Clark Public Utilities has been and will continue to develop the CETA specific energy assistance program(s) required to achieve the 2030 mandate of reducing energy burden and assistance need by sixty percent. This effort will include the roll out of new assistance programs during the second CEIP period that will be available to all customers who meet the CETA low-income definition. We will explore options to partner with a reputable community-based organization to implement and distribute the benefits from the new assistance programs. | I14: Other | J14: Resilience | K14: Low Energy Burden Bill Credit, and Energy Burden Relief Adjustment | L14: Utility funding. | M14: Utility resources; staff time. | O14: Measure participation rates of CETA defined low-income customers in the two new assisatnce programs. | P14: Measure total utility funding of all energy assistance programs. | R14: The expected effect of this specifc action is a substantial reduction in the number of energy burdened customers, and a substantial increase in the total amount of utility energy assistance funding. | S14: This specific action directly benefits vulnerable population customers because it increases the amount of energy assistance funding available to them. | T14: The primary risk to highly impacted communities and vulnerable populations with the clean energy transition is increased utility costs resulting in rate increases. This specifc action benefits vulnerable population customers materially, but does not reduce the risk of rate increases. That said, CETA mandates we reduce energy assistance need by 60% by 2030, and these two new assistance programs are needed to meet that requirement. | U14: N/A | V14: Not applicable | W14: The CEIP four-year period (2026 - 2029) | X14: $14,400,000 across the CEIP four-year period (note: some of the annual assistance funding is already in the utility revenue requirement, estimating incremental funding is difficult because it is based on customer particpation rates). | Y14: Reduced energy bills and increased energy security for named community customers.
B15: 2026_23_4_2 | C15: 2 | D15: Market and promote new energy assisatnce program opportunities to CETA defined low-income customers. | F15: =Auto_populate_Specific_Actions[[#This Row],[SA_ID]] -> 2026_23_4_2 | G15: =Auto_populate_Specific_Actions[[#This Row],[Specific Action]] -> Market and promote new energy assisatnce program opportunities to CETA defined low-income customers. | H15: Energy Assistance Program Development: Clark Public Utilities has been and will continue to develop the CETA specific energy assistance programs required to achieve the 2030 mandate of reducing energy burden and assistance need by sixty percent. This effort will include the roll out of new assistance programs during the second CEIP period that will be available to all customers who meet the CETA low-income definition. We will explore options to partner with a reputable community-based organization to implement and distribute the benefits from the new assistance programs. | I15: Other | J15: Public Outreach and Engagement | K15: Low Energy Burden Bill Credit, and Energy Burden Relief Adjustment | L15: Utility resources; staff time and adminstrative resources | O15: Measure participation rates of CETA defined low-income customers in the two new assistance programs. | R15: The expected effect of this specifc action is an increase of CETA defined low-income customers participating in the two new assistance programs. | S15: This specific action involves promoting and marketing the two new energy assistance programs, and if custoemrs choose to particpate they will receive a direct benefit in the form of additional energy assistance. | T15: The primary risk to highly impacted communities and vulnerable populations with the clean energy transition is increased utility costs resulting in rate increases. This specifc action benefits vulnerable population customers materially, but does not reduce the risk of rate increases. That said, CETA mandates we reduce energy assistance need by 60% by 2030, and these two new assistance programs are needed to meet that requirement. | U15: N/A | V15: Not applicable | W15: The CEIP four-year period (2026 - 2029) | X15: Utility staff time only. | Y15: N/A
F16: =Auto_populate_Specific_Actions[[#This Row],[SA_ID]] ->  | G16: =Auto_populate_Specific_Actions[[#This Row],[Specific Action]] -> 
F17: =Auto_populate_Specific_Actions[[#This Row],[SA_ID]] ->  | G17: =Auto_populate_Specific_Actions[[#This Row],[Specific Action]] -> 
F18: =Auto_populate_Specific_Actions[[#This Row],[SA_ID]] ->  | G18: =Auto_populate_Specific_Actions[[#This Row],[Specific Action]] -> 
F19: =Auto_populate_Specific_Actions[[#This Row],[SA_ID]] ->  | G19: =Auto_populate_Specific_Actions[[#This Row],[Specific Action]] -> 
F20: =Auto_populate_Specific_Actions[[#This Row],[SA_ID]] ->  | G20: =Auto_populate_Specific_Actions[[#This Row],[Specific Action]] -> 
F21: =Auto_populate_Specific_Actions[[#This Row],[SA_ID]] ->  | G21: =Auto_populate_Specific_Actions[[#This Row],[Specific Action]] -> 
F22: =Auto_populate_Specific_Actions[[#This Row],[SA_ID]] ->  | G22: =Auto_populate_Specific_Actions[[#This Row],[Specific Action]] -> 

Sheet Identify HIC & VP
B2: Highly Impacted Communities & Vulnerable Populations
B5: Highly impacted communities (WAC 194-40-200(4))
B6: Highly Impacted Community is defined in RCW 19.405.020(23) as: (23) "Highly impacted community" means a community designated by the department of health based on cumulative impact analyses in RCW 19.405.140 or a community located in census tracts that are fully or partially on "Indian country" as defined in 18 U.S.C. Sec. 1151. Department of Health has designated Highly Impacted Communities as those ranking 9 or 10 on the Environmental Health Disparities (EHD) map.
B8: Link to Instructions to Identify Highly Impacted Communities (HIC)
B9: Link to the Environmental Health Disparities (EHD) Map
B11: Which methodology did you use to identify highly impacted communities (HIC)? | C11: Environmental Health Disparities Map
B12: # of census tracts that are HIC (Rank 9 or 10 under EHD v2.0 or at least partially on "Indian Country") | C12: 25
B13: # of census tracts that are at least partially on "Indian Country" | C13: 1
B14: Average EHD v2.0 rank for service territory | C14: 6.167
B15: What are the top 1-3 EHD factors in your highly impacted communities? What are the rankings for these EHD factors and the associated metrics? | C15: As detailed on the WA Dept. of Health V2 EHD Map, the top three ranked Environmental Health Disparities (EHDs) in our Highly Impacted Communities are one, "Environmental Exposures", two "Environmental Effects", and three "Socioeconomic Factors". The most common metrics associated with our EHD factors include diesel exhaust emissions, ozone concentration, PM2.5 concentration, proximity to heavy traffic roadways, toxic releases from facilities, lead risk from housing, proximity to hazardous waste and RMP facilities, proximity to Superfund Sites, wastewater discharge, no high school diploma, people of color, population living in poverty, primary language other than English, transportation expense, unaffordable housing, and unemployment. The rankings for each of the associated metrics vary across our highly impacted communities; the most common rankings for all metrics is between 8 and 10, but occasionally we identified metric rankings below 8.
B16: How do your planned specific actions address the EHD factors for HICs (if applicable)? | C16: Specific actions were developed to ensure Clark Public Utilities succesfully meets CETA's clean energy mandates while also ensuring an equatable transition to the clean energy future for all of our customers, including named communities. The specifc actions included in our CEIP aim to reduce greenhouse gas emissions in our service territory, including diesel fuel emissions through the strategic deployment of new transportation electrification programs designed specifcally for named communities. The specific actions will also reduce energy burden for vulnerable customers living in or near poverty, increase energy resiliency across our service territory, and improve overall air quality in our community.
B18: Vulnerable populations (WAC 194-40-200(4))
B19: Please list all socioeconomic factors and sensitivity factors developed through a public process and used to identify Vulnerable Populations based on the definition in RCW 19.405.020(40): (40) "Vulnerable populations" means communities that experience a disproportionate cumulative risk from environmental burdens due to: (a) Adverse socioeconomic factors, including unemployment, high housing and transportation costs relative to income, access to food and health care, and linguistic isolation; and (b) Sensitivity factors, such as low birth weight and higher rates of hospitalization.
B21: Please describe how your utility identified vulnerable populations through a public process (e.g., surveys, focus groups, public forums, etc.) | C21: Clark Public Utilities hosted a Community Based Organization (CBO) workshop on 09/24/25 that included more than a dozen local CBOs that work directly with vulnerable populations in Clark County. During that workshop utility staff overviewed all equity categories within the CEIP. The utility delivered an online survey to all CBO particpants and collected feedback on which vulnerable populations, factors, and customer benefit indicators should be included in our CEIP. The survey results encouraged the utility to include three factors to identify vulnerable populations; energy burden, income, and language.
B22: How does your utility's planned specific actions address the vulnerable population factors (if applicable)? | C22: Our specific actions were designed to ensure succesful reduction of vulnerable population customers. The factors we selected are within the utility's spehere of influence, and through the strategic deployment of new clean energy programs we have addressed and created pathways to reduce vulnerbaility in our service terroritory.
B24: Factor Category | C24: Factor | D24: Details | E24: Source | F24: Date Last Updated
B25: E.g., Employment | C25: Unemployment | D25: % unemployed over 16 years old | E25: American Community Survey | F25: 2019-12-15
B26: Energy burden | C26: Customer hosueholds that spend >6% of their income on energy bills. | D26: Number of energy burdened customers. | E26: Empower Dataworks 2023 Energy Burden Assessment Report | F26: 2023-11-01
B27: Income | C27: Household income | D27: Number of CETA defined low-income customers. | E27: 2025 CBO survey results | F27: 2025-09-24
B28: Language | C28: Primary language | D28: Most used non-English languages in Clark County, WA. | E28: 2025 CBO survey results | F28: 2025-09-24
B32: Describe and explain any changes to the factors from your utility's previous Clean Energy Implementation Plan (CEIP), if any:
B33: The primary factor in our first CEIP was Energy Burden. When the first CEIP was adopted we had a total of 18,153 energy burdened customers. Empower Dataworks completed an updated energy burden assessment in 2023 that showed at that time we had 15,200 energy burdened customers. We added two additional factors to our second CEIP; income and language.

Sheet Public participation
B2: Public Participation
B5: Public participation (WAC 194-40-200(4), -220(1))
B6: Provide a summary of the public input process conducted in compliance with WAC 194-40-220. | C6: Clark Public Utilities' primary informational and public input process for the development of the 2026-2029 Clean Energy Implementation Plan (CEIP) is the CEIP webpage at Clark Public Utilities website. Customers were informed of the CEIP process and opportunity to review and provide public input through our customer newsletter, Currents. This newsletter is included with all bills (paper & electronic) and is the single most inclusive customer communications platform available for utility customers as it is provided directly to each and every customer. Utility customers can review information about the CEIP, specific and extensive draft documents and provide comments or feedback related to the 2026-2029 CEIP through comment portal that was embedded on the CEIP webpage. The comment period was open from August 2nd, 2025 through October 24th, 2025. Clark Public Utilities also hosted a public workshop on September 24th, 2025 with a variety of community-based organizations (CBOs) and local low-income service providers with the goal of gathering feedback and input to verify and validate identified vulnerable populations in our service territory. This expert insight was used to help shape the customer benefit indicators (CBIs) for the 2026-2029 CEIP. Attendees of this public workshop recieved and completed an online survey on equity topics included in the CEIP and responses informed the equity sections of our CEIP.
B7: What barriers to public participation does your utility's community face due to language, cultural, economic, technology, or other factors? | C7: Barriers to public participation are unique to individual customers based on their individual circumstances. Acknowledging that, there are also known most common barriers to participation including: Language barriers: Per US Census Bureau, approximately 15% of residents in our service territory are non-native English speakers. Spanish and Russian are the two most commonly spoken native laguages aside from English. Competing priorities: external factors such as inflation, cost of living increases, financial worry and others compete for time and priority for customers. Especially those within vulnerable populations and/or with limited income. Clark Public Utilities has operated a comprehensive customer research program for decades. The research program studies, measures, aggregates and analyzes customer satisfaction, preferences, priorities and other factors. This work shows clear indication that that overwhelming majority of customers top priorities are reliability and cost. Even more so the last five years. While many do indicate some level of importance around topics included in CETA/CEIP like being a leader in renewable energy, it's historically and consistently ranked as less important. Again, especially the last few years. This relationship could be characterized as reliability and lowest possible cost being stated "needs" of nearly all customers while the other topics around renewable energy, conservation, etc. being "nice to haves." Many customers simply don't have the time or energy to invest in nuanced utility policy discussions.
B8: What reasonable accommodations has your utility provided to reduce barriers to public participation? | C8: Language barriers: The utility website (clarkpublicutililties.com) includes accessibility tools that translate the website in it's entirety to any language. With Spanish and Russian being the two most commonly spoken languages outside of English in our service territory, we also created Spanish and Russian translated versions of our 2026-2029 CEIP fact sheet. Competing priorities: Engagement requires voluntary buy-in from community members and the decision to actively participate remains with individuals. While we can't manufacture enthusiasm where it doesn't exist, we can make the process as accessible as possible. Accomodations provided to reduce this barrier include the noted translation and accessiblity tools available on the CEIP webpage, plain language explanation of the CEIP and invitation to participate in the process through our Currents newsletter as noted elsewhere and with simple one-pager informational sheets about the process and opportunities to engage.
B9: Describe how public comments were reflected in the specific actions under WAC 194-40-200(4), including the development of one or more indicators and other elements of the CEIP and your utility's supporting integrated resource plan or resource plans, as applicable. | C9: The community-based organizations (CBOs) and low-income service providers who completed the CEIP equity topic survey confirmed that the utility has identified appropriate factors for recognizing vulnerable populations in our service territory. They also agreed that all three factors included in our CEIP are within the utility's sphere of influence. Additionally, these organizations confirmed that the utility's customer benefit indicators are appropriate measures for ensuring an equitable transition to a clean energy future. Customer comments received during the customer comment period showed many specific actions in the CEIP aligned with the overall themes that emerged. These include the development of new clean energy programs and energy assistance programs.

Sheet Long-term plans
B2: Long-term Plans
B5: Integrated resource plan & clean energy action plan compliance (WAC 194-40-200(6-7), WAC 194-40-200(4)(c)(iii))
B6: Is your clean energy implementation plan (CEIP) consistent with the most recent integrated resource plan or resource plan, as applicable, prepared by your utility under RCW 19.280.030? | C6: Yes
B7: Is your CEIP consistent with your utility's clean energy action plan developed under RCW 19.280.030(1) or other 10-year plan developed under RCW 19.280.030(5)? | C7: Yes
B8: How are the specific actions consistent with your utility’s resource plan and clean energy action plan? | C8: The specific actions detailed in our CEIP PDF report are consistent with our integrated resource plan and clean energy action plan because they are the same.
B9: Hyperlink to Relevant Assessment/Resource Plan | C9: https://www.clarkpublicutilities.com/wp-content/uploads/2024/08/CPU-2024-IRP_FINAL-Version-2-BPA-LF.pdf

Sheet Resource adequacy standard
B2: Resource Adequacy Standard
B5: Resource adequacy standard (WAC 194-40-200(8))
B6: Identify the resource adequacy standard and measurement metrics adopted by the utility under WAC 194-40-210 and used in establishing the targets in the CEIP. Identify and explain any changes to your resource adequacy standard.
B7: Resource adequacy standard (e.g., peak load standards, loss of load probability or loss of load expectation) | C7: As a BPA Load Following customer Clark Public Utilities participates in WRAP through BPA. The Qualified Capacity Contribution of Clark Public Utilities’ owned and contracted for resources are included in BPA’s portfolio of WRAP resources. Clark Public Utilities load will be included in WRAP along with the loads of BPA’s other Load Following customers. Clark Public Utilities WRAP obligations are included in Clark Public Utilities’ BPA Provider of Choice contract. Under the contract any WRAP penalties assessed to BPA that are caused by Clark Public Utilities not meeting its contractual obligations will be passed on to Clark Public Utilities.
B8: Methods of measurement (e.g., probabilistic assessments of resource adequacy) | C8: WRAP participants plan to a common RA standard. The program developed common capacity counting methods for generating resources and allows for the pooling of resources to meet the reliability needs of participants and unlock diversity benefits. A centralized entity administers and executes the RA program on behalf of members.

Sheet Incremental cost
B2: Incremental Cost
B5: Incremental cost calculation (WAC 194-40-230)
B6: Do not complete this section unless the utility intends to comply using the 2% incremental cost approach specified in WAC 194-40-230.
B7: Please upload separately documentation and detailed reporting necessary to comply with the CEIP incremental cost reporting requirements in WAC 194-40-230.
B9: You may use the calculator below to help estimate incremental costs; however, submission of detailed reporting is still required to comply with WAC 194-40-230. Delete the example numbers provided in the yellow fields below. Enter information in the yellow fields only. The grey cells will populate themselves.
B10: Summary of Results
B11: Total Incremental Cost | C11: =Q44 -> 0
B12: Average annual incremental cost | C12: =C11/4 -> 0
B13: Annual threshold amount | C13: =H18 -> 0
B14: Meets threshold? | C14: =IF(C12>=C13, "Yes", "No") -> Yes
B16: Year | C16: Retail revenue requirement | D16: Annual amount from revenue increase equal to 2% of prior year revenue requirement | E16: Number of years in effect | F16: Threshold amount over four years | G16: Sum of threshold amounts | H16: Annual threshold amount
B17: 0
B18: 1 | D18: =(C17*0.02) -> 0 | E18: 4 | F18: =(D18*E18) -> 0 | G18: =SUM(F18:F21) -> 0 | H18: =SUM(F18:F21)/4 -> 0
B19: =B18+1 -> 2 | D19: =(C18*0.02) -> 0 | E19: 3 | F19: =(D19*E19) -> 0
B20: =B19+1 -> 3 | D20: =(C19*0.02) -> 0 | E20: 2 | F20: =(D20*E20) -> 0
B21: 4 | D21: =(C20*0.02) -> 0 | E21: 1 | F21: =(D21*E21) -> 0
B22: Annual threshold amount as a percentage of average retail revenue requirement | H22: =H18/((C18+C19+C20+C21)/4) -> 
B24: Itemize all lowest reasonable costs the utility intends to incur during this interim period in order to comply with the requirements of the Clean Energy Transformation Act (CETA), RCW 19.405.040 and 19.405.050. Also, provide the alternative lowest reasonable cost if the utility did not have to comply with CETA. If a resource included in an actual or alternative portfolio has a useful life or contract duration of greater than one year, the cost of that resource must be allocated over the expected useful life or contract duration using a levelized cost or fixed charge factor.
B25: With-CETA Resource Portfolio | H25: No-CETA Resource Portfolio | M25: Incremental Cost
B26: Item Name | C26: =Compliance_Year -> 2026 | D26: =Compliance_Year+1 -> 2027 | E26: =D26+1 -> 2028 | F26: =E26+1 -> 2029 | H26: =C26 -> 2026 | I26: =D26 -> 2027 | J26: 2028 | K26: =F26 -> 2029 | M26: =C26 -> 2026 | N26: =D26 -> 2027 | O26: 2028 | P26: =F26 -> 2029 | Q26: Total
H27: 0 | I27: 0 | J27: 0 | K27: 0 | M27: =C27-H27 -> 0 | N27: =D27-I27 -> 0 | O27: =E27-J27 -> 0 | P27: 0 | Q27: =SUM(M27:P27) -> 0
M28: =C28-H28 -> 0 | N28: 0 | O28: 0 | P28: 0 | Q28: =SUM(M28:P28) -> 0
M29: 0 | N29: 0 | O29: 0 | P29: 0 | Q29: 0
M30: 0 | N30: 0 | O30: 0 | P30: 0 | Q30: 0
M31: 0 | N31: 0 | O31: 0 | P31: 0 | Q31: 0
M32: 0 | N32: 0 | O32: 0 | P32: 0 | Q32: 0
M33: 0 | N33: 0 | O33: 0 | P33: 0 | Q33: 0
M34: 0 | N34: 0 | O34: 0 | P34: 0 | Q34: 0
M35: 0 | N35: 0 | O35: 0 | P35: 0 | Q35: 0
M36: 0 | N36: 0 | O36: 0 | P36: 0 | Q36: 0
M37: 0 | N37: 0 | O37: 0 | P37: 0 | Q37: 0
M38: 0 | N38: 0 | O38: 0 | P38: 0 | Q38: 0
M39: 0 | N39: 0 | O39: 0 | P39: 0 | Q39: 0
M40: 0 | N40: 0 | O40: 0 | P40: 0 | Q40: 0
M41: 0 | N41: 0 | O41: 0 | P41: 0 | Q41: 0
M42: 0 | N42: 0 | O42: 0 | P42: 0 | Q42: 0
M43: 0 | N43: =D43-I43 -> 0 | O43: =E43-J43 -> 0 | P43: =F43-K43 -> 0 | Q43: 0
B44: Total | C44: =SUM(C27:C43) -> 0 | D44: =SUM(D27:D43) -> 0 | E44: =SUM(E27:E43) -> 0 | F44: =SUM(F27:F43) -> 0 | H44: =SUM(H27:H43) -> 0 | I44: =SUM(I27:I43) -> 0 | J44: =SUM(J27:J43) -> 0 | K44: =SUM(K27:K43) -> 0 | M44: =SUM(M27:M43) -> 0 | N44: =SUM(N27:N43) -> 0 | O44: =SUM(O27:O43) -> 0 | P44: =SUM(P27:P43) -> 0 | Q44: =SUM(Q27:Q43) -> 0

Sheet Data Validation Lists (hidden)
A1: Conservation Assessment Method | B1: Resource Category | C1: CETA Category | D1: Program Type | E1: Vulnerable Population Factor Category | F1: Highly Impacted Community Identification Method | G1: Compliant? | H1: Resources Location | J1: Utility Name | K1: Claimant ID
A2: Conservation Potential Assessment | B2: Renewable Energy | C2: Reduction of Burdens to Vulnerable Populations and Highly Impacted Communities | D2: Air Quality and Health | E2: Age | F2: Highly Impacted Communities Data Table | G2: Yes | H2: Yes | J2: Asotin County PUD #1 | K2: 85
A3: Regional Assessment | B3: Energy Efficiency | C3: Public Health | D3: Apprenticeship Program | E3: Arrearage | F3: Environmental Health Disparities Map | G3: No | H3: No | J3: Avista (WA) | K3: 109
A4: Other | B4: Demand Response | C4: Environmental Benefits | D4: Aviation Decarbonization | E4: Disability | H4: N/A | J4: Benton County PUD #1 | K4: 4
B5: Other | C5: Reduction of Costs and Risks | D5: Community and Economic Development | E5: Education | J5: Benton Rural Electric Assn | K5: 5
C6: Economic Development | D6: Community Solar | E6: Employment | J6: Big Bend Electric Coop | K6: 6
C7: Energy Security and Resiliency | D7: Demand Response | E7: Energy burden | J7: Centralia City Light | K7: 18
D8: Distributed Solar and Storage | E8: Health | J8: Chelan County PUD #1 | K8: 19
D9: Electric Vehicle Energy Management | E9: Housing | J9: Cheney Light Department | K9: 20
D10: Energy Efficiency and Weatherization | E10: Income | J10: Chewelah Electric Department | K10: 21
D11: Industrial Decarbonization | E11: Income + | J11: City of Blaine | K11: 12
D12: Long-duration Storage | E12: Index | J12: Clallam County PUD #1 | K12: 22
D13: Public Outreach and Engagement | E13: Internet Access | J13: Clark County PUD #1 | K13: 23
D14: Resilience | E14: Language | J14: Clearwater Power (WA) | K14: 26
D15: Transportation Decarbonization | E15: Other | J15: Columbia Rural Electric Assn (WA) | K15: 30
D16: Utility-scale Resources | E16: Race | J16: Consolidated Irrigation District #19 | K16: 161
E17: Rural customers | J17: Coulee Dam, Town of | K17: 32
E18: Transportation | J18: Cowlitz County PUD #1 | K18: 33
J19: Douglas County PUD #1 | K19: 35
J20: Eatonville Electric Department | K20: 38
J21: Ellensburg Electric Division | K21: 41
J22: Elmhurst Mutual Power & Light | K22: 39
J23: Energy Northwest | K23: 160
J24: Fairchild Airforce Base | K24: 162
J25: Ferry County PUD #1 | K25: 44
J26: Franklin County PUD #1 | K26: 46
J27: Grant County PUD #2 | K27: 82
J28: Grant County PUD #2 (Rate Schedule 13) | K28: 164
J29: Grays Harbor County PUD #1 | K29: 47
J30: Inland Power & Light | K30: 48
J31: Jefferson County PUD #1 | K31: 118
J32: Kalispel Tribal Utility | K32: 144
J33: Kittitas County PUD #1 | K33: 51
J34: Klickitat County PUD #1 | K34: 52
J35: Lakeview Light & Power | K35: 54
J36: Lewis County PUD #1 | K36: 56
J37: Mason County PUD #1 | K37: 111
J38: Mason County PUD #3 | K38: 89
J39: McCleary Light & Power | K39: 59
J40: Milton Electric Division | K40: 63
J41: Modern Electric Water Company | K41: 64
J42: Nespelem Valley Elec Coop | K42: 66
J43: Northern Lights (WA) | K43: 69
J44: Ohop Mutual Light | K44: 71
J45: Okanogan County Electric Coop | K45: 157
J46: Okanogan County PUD #1 | K46: 72
J47: Orcas Power & Light Coop | K47: 158
J48: Pacific County PUD #2 | K48: 76
J49: PacifiCorp | K49: 130
J50: Parkland Light & Water | K50: 81
J51: Pend Oreille County PUD #1 | K51: 83
J52: Peninsula Light | K52: 84
J53: Port Angeles Light Operations | K53: 86
J54: Port of Seattle | K54: 119
J55: Puget Sound Energy | K55: 90
J56: Puget Sound Energy Green Direct Program | K56: 167
J57: Richland Energy Services | K57: 91
J58: Ruston, Town of | K58: 92
J59: Seattle City Light | K59: 95
J60: Skamania County PUD #1 | K60: 96
J61: Snohomish County PUD #1 | K61: 97
J62: Steilacoom Electric Utility | K62: 99
J63: Sumas, City of | K63: 101
J64: Tacoma Power | K64: 102
J65: Tanner Electric Coop | K65: 103
J66: Vera Water & Power | K66: 106
J67: Wahkiakum County PUD #1 | K67: 88
J68: Whatcom County PUD #1 | K68: 117
J69: Yakama Power | K69: 120

Sheet Index (hidden)
A1: Compliance Year | B1: Claimant_ID | C1: CEIP_ID | D1: Ind_ID | E1: SA_ID | F1: SA_Index | G1: Indicator | H1: Specific Action | I1: CETA Category
A2: 2026 | B2: 23 | C2: 2026_23 | D2: 2026_23_1 | E2: 2026_23_1_1 | F2: 1 | G2: Increased energy affordability and increased access to clean energy. | H2: Develop at least one 100% low-income, 199 kilowatt (kW), community solar project over the CEIP four-year period. | I2: Reduction of Burdens to Vulnerable Populations and Highly Impacted Communities
A3: 2026 | B3: 23 | C3: 2026_23 | D3: 2026_23_1 | E3: 2026_23_1_2 | F3: 2 | G3: Increased energy affordability and increased access to clean energy. | H3: Allocate all solar energy generated by the new low-income community solar project to the utility's Operation Warm Heart program using a virtual net metering design that implements the retail rate value for each kWh of solar energy. | I3: Reduction of Burdens to Vulnerable Populations and Highly Impacted Communities
A4: 2026 | B4: 23 | C4: 2026_23 | D4: 2026_23_2 | E4: 2026_23_2_1 | F4: 1 | G4: More access to clean energy. | H4: Promote increased customer participation in the utility's new distributed energy resource program, Net Billing. The Net Billing program allows customers to install up to one megawatt (MW) of renewable resources. Promotion activities will focus customer engagement at community and industry events. | I4: Environmental Benefits
A5: 2026 | B5: 23 | C5: 2026_23 | D5: 2026_23_2 | E5: 2026_23_2_2 | F5: 2 | G5: More access to clean energy. | H5: Develop new marketing materials to promote the Net Billing program. | I5: Environmental Benefits
A6: 2026 | B6: 23 | C6: 2026_23 | D6: 2026_23_3 | E6: 2026_23_3_1 | F6: 1 | G6: Increased grid resilience, and increased public participation in utility programs from highly impacted communities and vulnerable populations. | H6: Create new demand response and load management programs avilable to all customers, but specifically designed for participation by named communities. | I6: Energy Security and Resiliency
A7: 2026 | B7: 23 | C7: 2026_23 | D7: 2026_23_3 | E7: 2026_23_3_2 | F7: 2 | G7: Increased grid resilience, and increased public participation in utility programs from highly impacted communities and vulnerable populations. | H7: Continue funding the Northwest Energy Efficiency Alliance's (NEEA) End Use Load Flex project to develop a portfolio of demand response and load management program opportunities. | I7: Energy Security and Resiliency
A8: 2026 | B8: 23 | C8: 2026_23 | D8: 2026_23_4 | E8: 2026_23_4_1 | F8: 1 | G8: Increased energy affordability for low-income households and named communities. | H8: Create new CETA compliant, energy assistance programs that are available to all customers who meet the CETA definition of low-income households. | I8: Reduction of Burdens to Vulnerable Populations and Highly Impacted Communities
A9: 2026 | B9: 23 | C9: 2026_23 | D9: 2026_23_4 | E9: 2026_23_4_2 | F9: 2 | G9: Increased energy affordability for low-income households and named communities. | H9: Market and promote new energy assisatnce program opportunities to CETA defined low-income customers. | I9: Reduction of Burdens to Vulnerable Populations and Highly Impacted Communities

Sheet Contact Data (hidden)
A1: CEIP_ID | B1: Compliance Year | C1: Claimant_ID | D1: Utility Name | E1: Report Date | F1: Contact Name | G1: Phone Number | H1: Email | I1: CEIP Hyperlink | J1: EIA Qualifying Utility? | K1: Full Requirements Customer? | L1: IRP Utility?
A2: =Compliance_Year&"_" &C2 -> 2026_23 | B2: =Compliance_Year -> 2026 | C2: =VLOOKUP(Utility_Name,Utility_List[],2, TRUE) -> 23 | D2: =Utility_Name -> Clark County PUD #1 | E2: =Submittal_Date -> 45979 | F2: =Contact_Name -> Matt Babbitts | G2: =Contact_Phone -> (360)992-3365 | H2: =Contact_Email -> mbabbitts@clarkpud.com | I2: =CEIP_Hyperlink -> https://www.clarkpublicutilities.com/about-cpu/public-documents/ceta/ceip/ | J2: 0 | K2: 0 | L2: =_xlfn.IFS(AND(J2=1,K2=0),1,AND(J2=0,K2=0),0,K2=1,0) -> 0

Sheet Contact Data_Transformed (hidden)
A1: CEIP_ID | B1: Compliance Year | C1: Claimant_ID | D1: Utility Name | E1: Report Date | F1: CEIP Hyperlink | G1: EIA Qualifying Utility? | H1: Full Requirements Customer? | I1: IRP Utility? | J1: Contact Name | K1: Email | L1: Phone Number
A2: 2026_23 | B2: 2026 | C2: 23 | D2: Clark County PUD #1 | E2: 00:00:00 | F2: 0 | G2: 0 | H2: 0 | I2: 0 | J2: Matt Babbitts | K2: mbabbitts@clarkpud.com | L2: (360)992-3365

Sheet Interim Targets Data (hidden)
A1: CEIP ID | B1: Compliance Year | C1: Claimant ID | D1: Utility Name | E1: Resource Category | F1: Clean Energy Type | G1: Year | H1: Value | I1: Units
A2: =CEIP_ID -> 2026_23 | B2: =Compliance_Year -> 2026 | C2: =VLOOKUP(Utility_Name,Utility_List[],2, TRUE) -> 23 | D2: =Utility_Name -> Clark County PUD #1 | E2: Clean Energy | F2: Renewable | G2: 2026 | H2: 0.62 | I2: %
A3: =CEIP_ID -> 2026_23 | B3: 2026 | C3: =VLOOKUP(Utility_Name,Utility_List[],2, TRUE) -> 23 | D3: Clark County PUD #1 | E3: Clean Energy | F3: Renewable | G3: 2027 | H3: 0.61 | I3: %
A4: 2026_23 | B4: 2026 | C4: =VLOOKUP(Utility_Name,Utility_List[],2, TRUE) -> 23 | D4: Clark County PUD #1 | E4: Clean Energy | F4: Renewable | G4: 2028 | H4: 0.67 | I4: %
A5: 2026_23 | B5: 2026 | C5: =VLOOKUP(Utility_Name,Utility_List[],2, TRUE) -> 23 | D5: Clark County PUD #1 | E5: Clean Energy | F5: Renewable | G5: 2029 | H5: 0.77 | I5: %
A6: 2026_23 | B6: 2026 | C6: =VLOOKUP(Utility_Name,Utility_List[],2, TRUE) -> 23 | D6: Clark County PUD #1 | E6: Clean Energy | F6: Renewable | G6: 4-year Period | H6: 0.6675 | I6: %
A7: 2026_23 | B7: 2026 | C7: =VLOOKUP(Utility_Name,Utility_List[],2, TRUE) -> 23 | D7: Clark County PUD #1 | E7: Clean Energy | F7: Nonemitting | G7: 2026 | H7: 0.07 | I7: %
A8: 2026_23 | B8: 2026 | C8: =VLOOKUP(Utility_Name,Utility_List[],2, TRUE) -> 23 | D8: Clark County PUD #1 | E8: Clean Energy | F8: Nonemitting | G8: 2027 | H8: 0.07 | I8: %
A9: 2026_23 | B9: 2026 | C9: =VLOOKUP(Utility_Name,Utility_List[],2, TRUE) -> 23 | D9: Clark County PUD #1 | E9: Clean Energy | F9: Nonemitting | G9: 2028 | H9: 0.07 | I9: %
A10: 2026_23 | B10: 2026 | C10: =VLOOKUP(Utility_Name,Utility_List[],2, TRUE) -> 23 | D10: Clark County PUD #1 | E10: Clean Energy | F10: Nonemitting | G10: 2029 | H10: 0.08 | I10: %
A11: 2026_23 | B11: 2026 | C11: =VLOOKUP(Utility_Name,Utility_List[],2, TRUE) -> 23 | D11: Clark County PUD #1 | E11: Clean Energy | F11: Nonemitting | G11: 4-year Period | H11: 0.0725 | I11: %

Sheet Specific Targets Data (hidden)
A1: CEIP ID | B1: Compliance Year | C1: Claimant ID | D1: Utility Name | E1: Resource Category | F1: Units | G1: Year | H1: Value
A2: =CEIP_ID -> 2026_23 | B2: =Compliance_Year -> 2026 | C2: =VLOOKUP(Utility_Name,Utility_List[],2, TRUE) -> 23 | D2: =Utility_Name -> Clark County PUD #1 | E2: Renewable Energy | F2: MWh | G2: 2026 | H2: 2957919
A3: 2026_23 | B3: 2026 | C3: =VLOOKUP(Utility_Name,Utility_List[],2, TRUE) -> 23 | D3: Clark County PUD #1 | E3: Renewable Energy | F3: MWh | G3: 2027 | H3: 2909364
A4: 2026_23 | B4: 2026 | C4: =VLOOKUP(Utility_Name,Utility_List[],2, TRUE) -> 23 | D4: Clark County PUD #1 | E4: Renewable Energy | F4: MWh | G4: 2028 | H4: 3210007
A5: 2026_23 | B5: 2026 | C5: =VLOOKUP(Utility_Name,Utility_List[],2, TRUE) -> 23 | D5: Clark County PUD #1 | E5: Renewable Energy | F5: MWh | G5: 2029 | H5: 3718209
A6: 2026_23 | B6: 2026 | C6: =VLOOKUP(Utility_Name,Utility_List[],2, TRUE) -> 23 | D6: Clark County PUD #1 | E6: Renewable Energy | F6: MWh | G6: 4-year Period | H6: 12795499
A7: 2026_23 | B7: 2026 | C7: =VLOOKUP(Utility_Name,Utility_List[],2, TRUE) -> 23 | D7: Clark County PUD #1 | E7: Energy Efficiency | F7: MWh | G7: 2026 | H7: 40447
A8: 2026_23 | B8: 2026 | C8: =VLOOKUP(Utility_Name,Utility_List[],2, TRUE) -> 23 | D8: Clark County PUD #1 | E8: Energy Efficiency | F8: MWh | G8: 2027 | H8: 41213
A9: 2026_23 | B9: 2026 | C9: =VLOOKUP(Utility_Name,Utility_List[],2, TRUE) -> 23 | D9: Clark County PUD #1 | E9: Energy Efficiency | F9: MWh | G9: 2028 | H9: 34603
A10: 2026_23 | B10: 2026 | C10: =VLOOKUP(Utility_Name,Utility_List[],2, TRUE) -> 23 | D10: Clark County PUD #1 | E10: Energy Efficiency | F10: MWh | G10: 2029 | H10: 38560
A11: 2026_23 | B11: 2026 | C11: =VLOOKUP(Utility_Name,Utility_List[],2, TRUE) -> 23 | D11: Clark County PUD #1 | E11: Energy Efficiency | F11: MWh | G11: 4-year Period | H11: 154823
A12: 2026_23 | B12: 2026 | C12: =VLOOKUP(Utility_Name,Utility_List[],2, TRUE) -> 23 | D12: Clark County PUD #1 | E12: Demand Response | F12: MW | G12: 2026 | H12: 9.96
A13: 2026_23 | B13: 2026 | C13: =VLOOKUP(Utility_Name,Utility_List[],2, TRUE) -> 23 | D13: Clark County PUD #1 | E13: Demand Response | F13: MW | G13: 2027 | H13: 10.12
A14: 2026_23 | B14: 2026 | C14: =VLOOKUP(Utility_Name,Utility_List[],2, TRUE) -> 23 | D14: Clark County PUD #1 | E14: Demand Response | F14: MW | G14: 2028 | H14: 10.3
A15: 2026_23 | B15: 2026 | C15: =VLOOKUP(Utility_Name,Utility_List[],2, TRUE) -> 23 | D15: Clark County PUD #1 | E15: Demand Response | F15: MW | G15: 2029 | H15: 10.52
A16: 2026_23 | B16: 2026 | C16: =VLOOKUP(Utility_Name,Utility_List[],2, TRUE) -> 23 | D16: Clark County PUD #1 | E16: Demand Response | F16: MW | G16: 4-year Period | H16: 40.9

Sheet Indicators Data (hidden)
A1: Ind_ID | B1: Indicator | C1: CETA Category | D1: Specific Action 1 | E1: Specific Action 2 | F1: Specific Action 3 | G1: Specific Action 4 | H1: Outcome Metric 1 | I1: Outcome Metric 2 | J1: Outcome Metric 3 | K1: Outcome Metric 4 | L1: Outcome Metric 5 | M1: How will the indicator and its associated metrics look different across the service territory in fou | N1: CEIP_ID
A2: 2026_23_1 | B2: Increased energy affordability and increased access to clean energy. | C2: Reduction of Burdens to Vulnerable Populations and Highly Impacted Communities | D2: Develop at least one 100% low-income, 199 kilowatt (kW), community solar project over the CEIP four-year period. | E2: Allocate all solar energy generated by the new low-income community solar project to the utility's Operation Warm Heart program using a virtual net metering design that implements the retail rate value for each kWh of solar energy. | H2: Number of new low-income community solar projects developed. Each 199kW low-income community solar project results in ~$20,000 in new annual funding to the utility's Operation Warm Heart energy assistance program. | I2: Number of additional solar megawatt hours (MWh) in Clark Public Utilities resource mix. | J2: Number of additional energy assistance grants provided by Operation Warm Heart due to increased funding from new low-income community solar projects. | M2: By developing new low-income community solar projects we will provide new energy assistance funding to low-income and vulnerable population households, therefore, reducing energy burden across our service territory. The specifc action of developing new low-income community solar projects also increases access to clean energy for named communities. | N2: 2026_23
A3: 2026_23_2 | B3: More access to clean energy. | C3: Environmental Benefits | D3: Promote increased customer participation in the utility's new distributed energy resource program, Net Billing. The Net Billing program allows customers to install up to one megawatt (MW) of renewable resources. Promotion activities will focus customer engagement at community and industry events. | E3: Develop new marketing materials to promote the Net Billing program. | H3: Number of renewable resource megawatts (MW) interconnected by customers participating in the Net Billing program. | I3: Number of new customers participating in the Net Billing program. | M3: By promoting customer participation in the Net Billing program we will increase the amount of renewable energy generated in our service trerritory over the four-year CEIP period. | N3: 2026_23
A4: 2026_23_3 | B4: Increased grid resilience, and increased public participation in utility programs from highly impacted communities and vulnerable populations. | C4: Energy Security and Resiliency | D4: Create new demand response and load management programs avilable to all customers, but specifically designed for participation by named communities. | E4: Continue funding the Northwest Energy Efficiency Alliance's (NEEA) End Use Load Flex project to develop a portfolio of demand response and load management program opportunities. | H4: Number of new demand response and load management programs developed during the CEIP four-year period that include participation options for named communities. | M4: There will be more demand response and load management programs designed to encourage participation by named communities. | N4: 2026_23
A5: 2026_23_4 | B5: Increased energy affordability for low-income households and named communities. | C5: Reduction of Burdens to Vulnerable Populations and Highly Impacted Communities | D5: Create new CETA compliant, energy assistance programs that are available to all customers who meet the CETA definition of low-income households. | E5: Market and promote new energy assisatnce program opportunities to CETA defined low-income customers. | H5: Number of CETA defined low-income customers who participate in the new utility energy assistance programs. | I5: Number of new energy assistance programs offered to CETA defined low-income customers. | M5: There will be an increased opportunity to receive energy assistance funding for CETA defined low-income customers. There will be an icnrease in the total energy assistance funding provided by the utility. | N5: 2026_23

Sheet Specific Actions Data (hidden)
A1: SA_ID | B1: Specific Action | C1: Long Description | D1: Resource Category | E1: Program Type | F1: Program Name | G1: Input Metric 1 | H1: Input Metric 2 | I1: Input Metric 3 | J1: Output Metric 1 | K1: Output Metric 2 | L1: Output Metric 3 | M1: What is the expected effect of this specific action on highly impacted communities and vulnerable po | N1: How will the specific action and its resources be governed by (if applicable), serve, or benefit hig | O1: What are the risks of this specific action to highly impacted communities and vulnerable populations | P1: Will resources be located in highly impacted communities or vulnerable populations? (Y/N/Not Applica | Q1: What is the general location of this specific action and its resources (if applicable)? | R1: What is the timing of this specific action? | S1: What is the estimated cost of this specific action? | T1: What other benefits does the specific action bring that isn't covered by the listed metrics? (option
A2: 2026_35_1_1 | B2: Establish air quality goals for all generation facilities and implement tracking/reporting system with an online dashboard
A3: 2026_35_1_2 | B3: Design and implement energy efficiency and weatherization measures that improve indoor air quality.
A4: 2026_35_1_3 | B4: Partner with industrial customers and community to fund testing of H2 combustion and share air quality data
A5: 2026_35_2_1 | B5: Invest in demonstration projects using blended or 100% clean fuels for industrial heat processes not served by electrification
A6: 2026_35_2_2 | B6: Partner with industrial partners to electrify industrial heat process
A7: 2026_35_2_3 | B7: Partner with airlines to use H2, electricity, and carbon-dioxide (CO2) to create sustainable aviation fuels
A8: 2026_35_2_4 | B8: Identify and upgrade grid infrastructure for urban delivery parking lots
A9: 2026_35_3_1 | B9: Develop pilot program using H2 as long-duration energy storage
A10: 2026_35_3_2 | B10: Deploy distributed dispatchable, carbon-free storage resources
A11: 2026_35_3_3 | B11: Invest in microgrid and backup energy storage projects focused on resilience in tribal or rural communities that have frequent outages
A12: 2026_35_4_1 | B12: Design a program for renters and MFH units to participate in distributed solar and storage
A13: 2026_35_4_2 | B13: Develop new tariff that accurately values and incentivizes distributed energy resources (DERs) > 100 kW
A14: 2026_35_4_3 | B14: Acquire brownfields for clean energy development
A15: 2026_35_5_1 | B15: Leverage grant programs from Dept. of Energy (DOE) & United States Dept. of Agriculture (USDA) for economic development in communities where transmission is built
A16: 2026_35_5_2 | B16: Create contract where energy developers pay into a community program or fund

Sheet Targets Qualitative (hidden)
A1: CEIP ID | B1: Compliance Year | C1: Claimant ID | D1: Utility Name | E1: Interim Targets Description | F1: Conservation Assessment Method | G1: CPA Hyperlink | H1: CPA Notes | I1: DR Methodology | J1: DR Assessment Findings | K1: DR Assessment Hyperlink | L1: DR Notes
A2: =CEIP_ID -> 2026_23 | B2: =Compliance_Year -> 2026 | C2: =VLOOKUP(Utility_Name,Utility_List[],2, TRUE) -> 23 | D2: =Utility_Name -> Clark County PUD #1 | E2: =Interim_Targets_Description -> Clark Public Utilities is making substantial progress towards meeting the CETA 2030 greenhouse gas neutral standard. The 2029 carbon-free percentage of retail load is estimated to be 82%, which exceeds the 2030 minimum threshold under CETA. | F2: =Conservation_Assessment_Method -> Conservation Potential Assessment | G2: =CPA_Hyperlink -> https://www.clarkpublicutilities.com/wp-content/uploads/2025/11/Clark-Public-Utilities-2025-CPA-Final-Report.pdf | H2: =CPA_Notes -> Lighthouse Consulting completed our 2025 CPA this year which shows all cost-effective energy efficiency opportunities by customer class, over a variety of time periods, including the CEIP four-year period. The modeling software used by Lighthouse was unable to model the residential behavorial program savings for 2028 and 2029 due to the program having a one-year measure life. Clark Public Utilities estimated the behavorial program savings for those two years. Therefore, the total available savings detailed in the CPA are less than the annual energy efficiency targets in the CEIP for years 2028 and 2029. | I2: =DR_Methodology -> Yes | J2: =DR_Assessment_Findings -> Lighthouse Consulting developed our 2025 DRPA this year which shows all cost-effective demand response opportunities by customer class, over a variety of time periods. Residential smart thermostat DR, industrial demand curtailment, and residential time-of-use pricing were the only products identified as cost effective and reliable, with a benefit-cost ratio greater than 1.0. The DRPA found no technologies to be "feasible" which means "possible to do easily or conveniently" because all DR technologies have a varying degree of complexitity, require broad customer participation to be impactful, and require specific utility conditions to be cost-effective. | K2: =DR_Assessment_Hyperlink -> https://www.clarkpublicutilities.com/wp-content/uploads/2025/11/Clark-Public-Utilities-2025-DRPA-Final-Report.pdf | L2: =DR_Notes -> Clark Public Utilities annual demand response targets were developed by evaluating the potential for existing and planned demand response programs.

Sheet Output Metrics (hidden)
A1: Ind_ID | B1: Indicator | C1: CETA Category | D1: CEIP_ID | E1: Metric Type | F1: Metric
A2: 2026_23_1 | B2: Increased energy affordability and increased access to clean energy. | C2: Reduction of Burdens to Vulnerable Populations and Highly Impacted Communities | D2: 2026_23 | E2: Outcome Metric | F2: Number of new low-income community solar projects developed. Each 199kW low-income community solar project results in ~$20,000 in new annual funding to the utility's Operation Warm Heart energy assistance program.
A3: 2026_23_1 | B3: Increased energy affordability and increased access to clean energy. | C3: Reduction of Burdens to Vulnerable Populations and Highly Impacted Communities | D3: 2026_23 | E3: Outcome Metric | F3: Number of additional solar megawatt hours (MWh) in Clark Public Utilities resource mix.
A4: 2026_23_1 | B4: Increased energy affordability and increased access to clean energy. | C4: Reduction of Burdens to Vulnerable Populations and Highly Impacted Communities | D4: 2026_23 | E4: Outcome Metric | F4: Number of additional energy assistance grants provided by Operation Warm Heart due to increased funding from new low-income community solar projects.
A5: 2026_23_2 | B5: More access to clean energy. | C5: Environmental Benefits | D5: 2026_23 | E5: Outcome Metric | F5: Number of renewable resource megawatts (MW) interconnected by customers participating in the Net Billing program.
A6: 2026_23_2 | B6: More access to clean energy. | C6: Environmental Benefits | D6: 2026_23 | E6: Outcome Metric | F6: Number of new customers participating in the Net Billing program.
A7: 2026_23_3 | B7: Increased grid resilience, and increased public participation in utility programs from highly impacted communities and vulnerable populations. | C7: Energy Security and Resiliency | D7: 2026_23 | E7: Outcome Metric | F7: Number of new demand response and load management programs developed during the CEIP four-year period that include participation options for named communities.
A8: 2026_23_4 | B8: Increased energy affordability for low-income households and named communities. | C8: Reduction of Burdens to Vulnerable Populations and Highly Impacted Communities | D8: 2026_23 | E8: Outcome Metric | F8: Number of CETA defined low-income customers who participate in the new utility energy assistance programs.
A9: 2026_23_4 | B9: Increased energy affordability for low-income households and named communities. | C9: Reduction of Burdens to Vulnerable Populations and Highly Impacted Communities | D9: 2026_23 | E9: Outcome Metric | F9: Number of new energy assistance programs offered to CETA defined low-income customers.

Sheet Input-output Metrics (hidden)
A1: SA_ID | B1: Specific Action | C1: Long Description | D1: Resource Category | E1: Program Type | F1: Program Name | G1: Metric Type | H1: Metric
A2: 2026_1_1_1 | B2: Establish air quality goals for all generation facilities and implement tracking/reporting system with an online dashboard | C2: Blahblahblahblahblah | D2: Renewable Energy | E2: Aviation Decarbonization | F2: Misc Name 1 | G2: Input Metric | H2: # of generation facilities with air quality targets
A3: 2026_1_1_1 | B3: Establish air quality goals for all generation facilities and implement tracking/reporting system with an online dashboard | C3: Blahblahblahblahblah | D3: Renewable Energy | E3: Aviation Decarbonization | F3: Misc Name 1 | G3: Output Metric | H3: # of generation facilities that met/missed air quality targets
A4: 2026_1_1_2 | B4: Design and implement energy efficiency and weatherization measures that improve indoor air quality. | C4: Blahblahblahblahblah | D4: Energy Efficiency | E4: Community and Economic Development | F4: Misc Name 2 | G4: Input Metric | H4: $ invested into EE and Wx that improve indoor air quality each year
A5: 2026_1_1_2 | B5: Design and implement energy efficiency and weatherization measures that improve indoor air quality. | C5: Blahblahblahblahblah | D5: Energy Efficiency | E5: Community and Economic Development | F5: Misc Name 2 | G5: Input Metric | H5: # of identified households for outreach
A6: 2026_1_1_2 | B6: Design and implement energy efficiency and weatherization measures that improve indoor air quality. | C6: Blahblahblahblahblah | D6: Energy Efficiency | E6: Community and Economic Development | F6: Misc Name 2 | G6: Output Metric | H6: # of recipients in highly impacted communities and vulnerable populations
A7: 2026_1_1_2 | B7: Design and implement energy efficiency and weatherization measures that improve indoor air quality. | C7: Blahblahblahblahblah | D7: Energy Efficiency | E7: Community and Economic Development | F7: Misc Name 2 | G7: Output Metric | H7: # of households retrofitted
A8: 2026_1_1_3 | B8: Partner with industrial customers and community to fund testing of H2 combustion and share air quality data | C8: Blahblahblahblahblah | D8: Demand Response | E8: Electric Vehicle Energy Management | F8: Misc Name 3 | G8: Input Metric | H8: $ invested in program
A9: 2026_1_1_3 | B9: Partner with industrial customers and community to fund testing of H2 combustion and share air quality data | C9: Blahblahblahblahblah | D9: Demand Response | E9: Electric Vehicle Energy Management | F9: Misc Name 3 | G9: Input Metric | H9: # of tests completed
A10: 2026_1_1_3 | B10: Partner with industrial customers and community to fund testing of H2 combustion and share air quality data | C10: Blahblahblahblahblah | D10: Demand Response | E10: Electric Vehicle Energy Management | F10: Misc Name 3 | G10: Input Metric | H10: # of potential industrial partners identified
A11: 2026_1_1_3 | B11: Partner with industrial customers and community to fund testing of H2 combustion and share air quality data | C11: Blahblahblahblahblah | D11: Demand Response | E11: Electric Vehicle Energy Management | F11: Misc Name 3 | G11: Output Metric | H11: # of H2 facility conversions completed
A12: 2026_1_1_3 | B12: Partner with industrial customers and community to fund testing of H2 combustion and share air quality data | C12: Blahblahblahblahblah | D12: Demand Response | E12: Electric Vehicle Energy Management | F12: Misc Name 3 | G12: Output Metric | H12: # of meetings attended
A13: 2026_1_1_3 | B13: Partner with industrial customers and community to fund testing of H2 combustion and share air quality data | C13: Blahblahblahblahblah | D13: Demand Response | E13: Electric Vehicle Energy Management | F13: Misc Name 3 | G13: Output Metric | H13: # of industrial customers, state agencies, and utilities partnered with
A14: 2026_1_2_1 | B14: Invest in demonstration projects using blended or 100% clean fuels for industrial heat processes not served by electrification | C14: Blahblahblahblahblah | D14: Other | E14: Electric Vehicle Energy Management | F14: Misc Name 4 | G14: Input Metric | H14: $ invested each year
A15: 2026_1_2_1 | B15: Invest in demonstration projects using blended or 100% clean fuels for industrial heat processes not served by electrification | C15: Blahblahblahblahblah | D15: Other | E15: Electric Vehicle Energy Management | F15: Misc Name 4 | G15: Input Metric | H15: # of fossil fuel peaker plants identified for replacement
A16: 2026_1_2_1 | B16: Invest in demonstration projects using blended or 100% clean fuels for industrial heat processes not served by electrification | C16: Blahblahblahblahblah | D16: Other | E16: Electric Vehicle Energy Management | F16: Misc Name 4 | G16: Output Metric | H16: # of demonstration projects completed
A17: 2026_1_2_1 | B17: Invest in demonstration projects using blended or 100% clean fuels for industrial heat processes not served by electrification | C17: Blahblahblahblahblah | D17: Other | E17: Electric Vehicle Energy Management | F17: Misc Name 4 | G17: Output Metric | H17: # of converted peaker plants
A18: 2026_1_2_1 | B18: Invest in demonstration projects using blended or 100% clean fuels for industrial heat processes not served by electrification | C18: Blahblahblahblahblah | D18: Other | E18: Electric Vehicle Energy Management | F18: Misc Name 4 | G18: Output Metric | H18: % of facilities replaced in overburdened communities
A19: 2026_1_2_2 | B19: Partner with industrial partners to electrify industrial heat process | C19: Blahblahblahblahblah | D19: Renewable Energy | E19: Long-duration Storage | F19: Misc Name 5 | G19: Input Metric | H19: $ invested each year
A20: 2026_1_2_2 | B20: Partner with industrial partners to electrify industrial heat process | C20: Blahblahblahblahblah | D20: Renewable Energy | E20: Long-duration Storage | F20: Misc Name 5 | G20: Input Metric | H20: MW of capacity acquired to meet new demand
A21: 2026_1_2_2 | B21: Partner with industrial partners to electrify industrial heat process | C21: Blahblahblahblahblah | D21: Renewable Energy | E21: Long-duration Storage | F21: Misc Name 5 | G21: Input Metric | H21: # of potential industrial partners identified
A22: 2026_1_2_2 | B22: Partner with industrial partners to electrify industrial heat process | C22: Blahblahblahblahblah | D22: Renewable Energy | E22: Long-duration Storage | F22: Misc Name 5 | G22: Output Metric | H22: # of industrial facilities with heat processes electrified
A23: 2026_1_2_2 | B23: Partner with industrial partners to electrify industrial heat process | C23: Blahblahblahblahblah | D23: Renewable Energy | E23: Long-duration Storage | F23: Misc Name 5 | G23: Output Metric | H23: Fuel costs savings/growth due to electrification
A24: 2026_1_2_2 | B24: Partner with industrial partners to electrify industrial heat process | C24: Blahblahblahblahblah | D24: Renewable Energy | E24: Long-duration Storage | F24: Misc Name 5 | G24: Output Metric | H24: Joules replaced with electric sources
A25: 2026_1_2_3 | B25: Partner with airlines to use H2, electricity, and carbon-dioxide (CO2) to create sustainable aviation fuels | C25: Blahblahblahblahblah | D25: Energy Efficiency | E25: Industrial Decarbonization | F25: Misc Name 6 | G25: Input Metric | H25: MW of capacity acquired to support SAF
A26: 2026_1_2_3 | B26: Partner with airlines to use H2, electricity, and carbon-dioxide (CO2) to create sustainable aviation fuels | C26: Blahblahblahblahblah | D26: Energy Efficiency | E26: Industrial Decarbonization | F26: Misc Name 6 | G26: Output Metric | H26: Liters of conventional jet fuel replaced by SAF
A27: 2026_1_2_3 | B27: Partner with airlines to use H2, electricity, and carbon-dioxide (CO2) to create sustainable aviation fuels | C27: Blahblahblahblahblah | D27: Energy Efficiency | E27: Industrial Decarbonization | F27: Misc Name 6 | G27: Output Metric | H27: Liters of SAF sold
A28: 2026_1_2_3 | B28: Partner with airlines to use H2, electricity, and carbon-dioxide (CO2) to create sustainable aviation fuels | C28: Blahblahblahblahblah | D28: Energy Efficiency | E28: Industrial Decarbonization | F28: Misc Name 6 | G28: Output Metric | H28: Credits or $ equivalent generated from SAF production
A29: 2026_1_2_4 | B29: Identify and upgrade grid infrastructure for urban delivery parking lots | C29: Blahblahblahblahblah | D29: Demand Response | E29: Aviation Decarbonization | F29: Misc Name 7 | G29: Input Metric | H29: # of urban delivery parking lots identified
A30: 2026_1_2_4 | B30: Identify and upgrade grid infrastructure for urban delivery parking lots | C30: Blahblahblahblahblah | D30: Demand Response | E30: Aviation Decarbonization | F30: Misc Name 7 | G30: Output Metric | H30: # of urban delivery parking lots upgraded
A31: 2026_1_2_4 | B31: Identify and upgrade grid infrastructure for urban delivery parking lots | C31: Blahblahblahblahblah | D31: Demand Response | E31: Aviation Decarbonization | F31: Misc Name 7 | G31: Output Metric | H31: # of urban delivery partners
A32: 2026_1_2_4 | B32: Identify and upgrade grid infrastructure for urban delivery parking lots | C32: Blahblahblahblahblah | D32: Demand Response | E32: Aviation Decarbonization | F32: Misc Name 7 | G32: Output Metric | H32: MT CO2e avoided through ICE vehicle usage replacement
A33: 2026_1_3_1 | B33: Develop pilot program using H2 as long-duration energy storage | C33: Blahblahblahblahblah | D33: Other | E33: Community and Economic Development | F33: Misc Name 8 | G33: Input Metric | H33: H2 capacity dedicated to storage
A34: 2026_1_3_1 | B34: Develop pilot program using H2 as long-duration energy storage | C34: Blahblahblahblahblah | D34: Other | E34: Community and Economic Development | F34: Misc Name 8 | G34: Output Metric | H34: H2 used to offset peak electricity
A35: 2026_1_3_1 | B35: Develop pilot program using H2 as long-duration energy storage | C35: Blahblahblahblahblah | D35: Other | E35: Community and Economic Development | F35: Misc Name 8 | G35: Output Metric | H35: Peak shaving in MWh
A36: 2026_1_3_2 | B36: Deploy distributed dispatchable, carbon-free storage resources | C36: Blahblahblahblahblah | D36: Renewable Energy | E36: Electric Vehicle Energy Management | F36: Misc Name 9 | G36: Input Metric | H36: Identify # of feasible projects for communities in need
A37: 2026_1_3_2 | B37: Deploy distributed dispatchable, carbon-free storage resources | C37: Blahblahblahblahblah | D37: Renewable Energy | E37: Electric Vehicle Energy Management | F37: Misc Name 9 | G37: Output Metric | H37: # of projects completed or deployed in communities in need
A38: 2026_1_3_2 | B38: Deploy distributed dispatchable, carbon-free storage resources | C38: Blahblahblahblahblah | D38: Renewable Energy | E38: Electric Vehicle Energy Management | F38: Misc Name 9 | G38: Output Metric | H38: Power needs offset by storage resources
A39: 2026_1_3_3 | B39: Invest in microgrid and backup energy storage projects focused on resilience in tribal or rural communities that have frequent outages | C39: Blahblahblahblahblah | D39: Energy Efficiency | E39: Electric Vehicle Energy Management | F39: Misc Name 10 | G39: Input Metric | H39: $ invested in projects
A40: 2026_1_3_3 | B40: Invest in microgrid and backup energy storage projects focused on resilience in tribal or rural communities that have frequent outages | C40: Blahblahblahblahblah | D40: Energy Efficiency | E40: Electric Vehicle Energy Management | F40: Misc Name 10 | G40: Output Metric | H40: # of projects completed
A41: 2026_1_3_3 | B41: Invest in microgrid and backup energy storage projects focused on resilience in tribal or rural communities that have frequent outages | C41: Blahblahblahblahblah | D41: Energy Efficiency | E41: Electric Vehicle Energy Management | F41: Misc Name 10 | G41: Output Metric | H41: Downtime avoided thru microgrid and storage utilization
A42: 2026_1_4_1 | B42: Design a program for renters and MFH units to participate in distributed solar and storage | C42: Blahblahblahblahblah | D42: Demand Response | E42: Long-duration Storage | F42: Misc Name 11 | G42: Input Metric | H42: % of project capacity reserved for renters and MFH
A43: 2026_1_4_1 | B43: Design a program for renters and MFH units to participate in distributed solar and storage | C43: Blahblahblahblahblah | D43: Demand Response | E43: Long-duration Storage | F43: Misc Name 11 | G43: Input Metric | H43: MW community procured for the renter and MFH program
A44: 2026_1_4_1 | B44: Design a program for renters and MFH units to participate in distributed solar and storage | C44: Blahblahblahblahblah | D44: Demand Response | E44: Long-duration Storage | F44: Misc Name 11 | G44: Output Metric | H44: # of subscribers
A45: 2026_1_4_1 | B45: Design a program for renters and MFH units to participate in distributed solar and storage | C45: Blahblahblahblahblah | D45: Demand Response | E45: Long-duration Storage | F45: Misc Name 11 | G45: Output Metric | H45: % of people waitlisted for program
A46: 2026_1_4_1 | B46: Design a program for renters and MFH units to participate in distributed solar and storage | C46: Blahblahblahblahblah | D46: Demand Response | E46: Long-duration Storage | F46: Misc Name 11 | G46: Output Metric | H46: % of renter and MFH dedicated community solar capacity subscribed
A47: 2026_1_4_2 | B47: Develop new tariff that accurately values and incentivizes distributed energy resources (DERs) > 100 kW | C47: Blahblahblahblahblah | D47: Other | E47: Industrial Decarbonization | F47: Misc Name 12 | G47: Input Metric | H47: # of stakeholders engaged on new tariff design
A48: 2026_1_4_2 | B48: Develop new tariff that accurately values and incentivizes distributed energy resources (DERs) > 100 kW | C48: Blahblahblahblahblah | D48: Other | E48: Industrial Decarbonization | F48: Misc Name 12 | G48: Output Metric | H48: # of DERs > 100kW utilized after tariff goes into effect
A49: 2026_1_4_3 | B49: Acquire brownfields for clean energy development | C49: Blahblahblahblahblah | D49: Renewable Energy | E49: Aviation Decarbonization | F49: Misc Name 13 | G49: Input Metric | H49: # of identified brownfields in service territory
A50: 2026_1_4_3 | B50: Acquire brownfields for clean energy development | C50: Blahblahblahblahblah | D50: Renewable Energy | E50: Aviation Decarbonization | F50: Misc Name 13 | G50: Input Metric | H50: # of clean energy project RFPs received for brownfields
A51: 2026_1_4_3 | B51: Acquire brownfields for clean energy development | C51: Blahblahblahblahblah | D51: Renewable Energy | E51: Aviation Decarbonization | F51: Misc Name 13 | G51: Output Metric | H51: # of utilized brownfields
A52: 2026_1_5_1 | B52: Leverage grant programs from Dept. of Energy (DOE) & United States Dept. of Agriculture (USDA) for economic development in communities where transmission is built | C52: Blahblahblahblahblah | D52: Energy Efficiency | E52: Community and Economic Development | F52: Misc Name 14 | G52: Input Metric | H52: # of grant applications assigned to project team
A53: 2026_1_5_1 | B53: Leverage grant programs from Dept. of Energy (DOE) & United States Dept. of Agriculture (USDA) for economic development in communities where transmission is built | C53: Blahblahblahblahblah | D53: Energy Efficiency | E53: Community and Economic Development | F53: Misc Name 14 | G53: Output Metric | H53: $s received from grants
A54: 2026_1_5_2 | B54: Create contract where energy developers pay into a community program or fund | C54: Blahblahblahblahblah | D54: Demand Response | E54: Electric Vehicle Energy Management | F54: Misc Name 15 | G54: Input Metric | H54: # of community programs or funds identified
A55: 2026_1_5_2 | B55: Create contract where energy developers pay into a community program or fund | C55: Blahblahblahblahblah | D55: Demand Response | E55: Electric Vehicle Energy Management | F55: Misc Name 15 | G55: Input Metric | H55: $s distributed to community programs
A56: 2026_1_5_2 | B56: Create contract where energy developers pay into a community program or fund | C56: Blahblahblahblahblah | D56: Demand Response | E56: Electric Vehicle Energy Management | F56: Misc Name 15 | G56: Output Metric | H56: # of community programs funded
A57: 2026_1_5_2 | B57: Create contract where energy developers pay into a community program or fund | C57: Blahblahblahblahblah | D57: Demand Response | E57: Electric Vehicle Energy Management | F57: Misc Name 15 | G57: Output Metric | H57: $s distributed to community programs

Sheet HIC & VP Data (hidden)
A1: CEIP ID | B1: Compliance Year | C1: Claimant ID | D1: Utility Name | E1: HIC ID Methodology | F1: Number of HIC Census Tracts | G1: Number of Indian Country Census Tracts | H1: Average EHD for Service Territory | I1: Top EHD Factors | J1: Specific Actions to Address EHD Factors | K1: VP ID Methodology | L1: Specific Actions to Address VP Factors | M1: VP Factor Changes
A2: =CEIP_ID -> 2026_23 | B2: =Compliance_Year -> 2026 | C2: =VLOOKUP(Utility_Name,Utility_List[],2, TRUE) -> 23 | D2: =Utility_Name -> Clark County PUD #1 | E2: =HIC_ID_Methodology -> Environmental Health Disparities Map | F2: =HIC_Count -> 25 | G2: =HIC_Indian_Count -> 1 | H2: =Avg_EHD -> 6.167 | I2: =Top_EHD_Factors -> As detailed on the WA Dept. of Health V2 EHD Map, the top three ranked Environmental Health Disparities (EHDs) in our Highly Impacted Communities are one, "Environmental Exposures", two "Environmental Effects", and three "Socioeconomic Factors". The most common metrics associated with our EHD factors include diesel exhaust emissions, ozone concentration, PM2.5 concentration, proximity to heavy traffic roadways, toxic releases from facilities, lead risk from housing, proximity to hazardous waste and RMP facilities, proximity to Superfund Sites, wastewater discharge, no high school diploma, people of color, population living in poverty, primary language other than English, transportation expense, unaffordable housing, and unemployment. The rankings for each of the associated metrics vary across our highly impacted communities; the most common rankings for all metrics is between 8 and 10, but occasionally we identified metric rankings below 8. | J2: =Address_EHDs -> Specific actions were developed to ensure Clark Public Utilities succesfully meets CETA's clean energy mandates while also ensuring an equatable transition to the clean energy future for all of our customers, including named communities. The specifc actions included in our CEIP aim to reduce greenhouse gas emissions in our service territory, including diesel fuel emissions through the strategic deployment of new transportation electrification programs designed specifcally for named communities. The specific actions will also reduce energy burden for vulnerable customers living in or near poverty, increase energy resiliency across our service territory, and improve overall air quality in our community. | K2: =VP_ID_Methodology -> Clark Public Utilities hosted a Community Based Organization (CBO) workshop on 09/24/25 that included more than a dozen local CBOs that work directly with vulnerable populations in Clark County. During that workshop utility staff overviewed all equity categories within the CEIP. The utility delivered an online survey to all CBO particpants and collected feedback on which vulnerable populations, factors, and customer benefit indicators should be included in our CEIP. The survey results encouraged the utility to include three factors to identify vulnerable populations; energy burden, income, and language. | L2: =Address_VP_Factors -> Our specific actions were designed to ensure succesful reduction of vulnerable population customers. The factors we selected are within the utility's spehere of influence, and through the strategic deployment of new clean energy programs we have addressed and created pathways to reduce vulnerbaility in our service terroritory. | M2: =VP_Factor_Changes -> The primary factor in our first CEIP was Energy Burden. When the first CEIP was adopted we had a total of 18,153 energy burdened customers. Empower Dataworks completed an updated energy burden assessment in 2023 that showed at that time we had 15,200 energy burdened customers. We added two additional factors to our second CEIP; income and language.

Sheet VP Factors (hidden)
A1: CEIP ID | B1: Compliance Year | C1: Claimant ID | D1: Utility Name | E1: Factor Category | F1: Factor | G1: Details | H1: Source | I1: Date Last Updated
A2: =CEIP_ID -> 2026_23 | B2: =Compliance_Year -> 2026 | C2: =VLOOKUP(Utility_Name,Utility_List[],2, TRUE) -> 23 | D2: =Utility_Name -> Clark County PUD #1 | E2: ='Identify HIC & VP'!B26 -> Energy burden | F2: ='Identify HIC & VP'!C26 -> Customer hosueholds that spend >6% of their income on energy bills. | G2: ='Identify HIC & VP'!D26 -> Number of energy burdened customers. | H2: ='Identify HIC & VP'!E26 -> Empower Dataworks 2023 Energy Burden Assessment Report | I2: ='Identify HIC & VP'!F26 -> 45231
A3: 2026_23 | B3: 2026 | C3: =VLOOKUP(Utility_Name,Utility_List[],2, TRUE) -> 23 | D3: Clark County PUD #1 | E3: ='Identify HIC & VP'!B27 -> Income | F3: ='Identify HIC & VP'!D27 -> Number of CETA defined low-income customers. | G3: ='Identify HIC & VP'!#REF! ->  | H3: ='Identify HIC & VP'!E27 -> 2025 CBO survey results | I3: ='Identify HIC & VP'!F27 -> 45924
A4: 2026_23 | B4: 2026 | C4: =VLOOKUP(Utility_Name,Utility_List[],2, TRUE) -> 23 | D4: Clark County PUD #1 | E4: ='Identify HIC & VP'!B28 -> Language | F4: ='Identify HIC & VP'!C28 -> Primary language | G4: ='Identify HIC & VP'!D28 -> Most used non-English languages in Clark County, WA. | H4: ='Identify HIC & VP'!E28 -> 2025 CBO survey results | I4: ='Identify HIC & VP'!F28 -> 45924
A5: 2026_23 | B5: 2026 | C5: =VLOOKUP(Utility_Name,Utility_List[],2, TRUE) -> 23 | D5: Clark County PUD #1 | E5: ='Identify HIC & VP'!B29 -> 0 | F5: ='Identify HIC & VP'!C29 -> 0 | G5: ='Identify HIC & VP'!D29 -> 0 | H5: ='Identify HIC & VP'!E29 -> 0 | I5: ='Identify HIC & VP'!F29 -> 0
A6: 2026_23 | B6: 2026 | C6: =VLOOKUP(Utility_Name,Utility_List[],2, TRUE) -> 23 | D6: Clark County PUD #1 | E6: ='Identify HIC & VP'!B30 -> 0 | F6: ='Identify HIC & VP'!C30 -> 0 | G6: ='Identify HIC & VP'!D30 -> 0 | H6: ='Identify HIC & VP'!E30 -> 0 | I6: ='Identify HIC & VP'!F30 -> 0
A7: 2026_23 | B7: 2026 | C7: =VLOOKUP(Utility_Name,Utility_List[],2, TRUE) -> 23 | D7: Clark County PUD #1 | E7: ='Identify HIC & VP'!B31 -> 0 | F7: ='Identify HIC & VP'!C31 -> 0 | G7: ='Identify HIC & VP'!D31 -> 0 | H7: ='Identify HIC & VP'!E31 -> 0 | I7: ='Identify HIC & VP'!F31 -> 0

Sheet CETA Categories (hidden)
A1: Ind_ID | B1: Indicator | C1: CEIP_ID | D1: CETA Category
A2: 2026_23_1 | B2: Increased energy affordability and increased access to clean energy. | C2: 2026_23 | D2: Reduction of Burdens to Vulnerable Populations and Highly Impacted Communities
A3: 2026_23_2 | B3: More access to clean energy. | C3: 2026_23 | D3: Environmental Benefits
A4: 2026_23_3 | B4: Increased grid resilience, and increased public participation in utility programs from highly impacted communities and vulnerable populations. | C4: 2026_23 | D4: Energy Security and Resiliency
A5: 2026_23_4 | B5: Increased energy affordability for low-income households and named communities. | C5: 2026_23 | D5: Reduction of Burdens to Vulnerable Populations and Highly Impacted Communities

Sheet Qualitative Qs (hidden)
A1: CEIP ID | B1: Compliance Year | C1: Claimant ID | D1: Utility Name | E1: Summary of Public Input | F1: Barriers to Public Participation | G1: Reasonable Accomodations | H1: Incorporation of Public Comments | I1: CEIP Consistent with RP? | J1: CEIP Consistent with CEAP? | K1: Specific Actions Consistent with RP and CEAP | L1: Resource Plan Hyperlink | M1: Resource Adequacy Standard | N1: Resource Adequacy Methods of Measurement
A2: =CEIP_ID -> 2026_23 | B2: =Compliance_Year -> 2026 | C2: =VLOOKUP(Utility_Name,Utility_List[],2, TRUE) -> 23 | D2: =Utility_Name -> Clark County PUD #1 | E2: =Summary_of_Public_Input -> Clark Public Utilities' primary informational and public input process for the development of the 2026-2029 Clean Energy Implementation Plan (CEIP) is the CEIP webpage at Clark Public Utilities website. Customers were informed of the CEIP process and opportunity to review and provide public input through our customer newsletter, Currents. This newsletter is included with all bills (paper & electronic) and is the single most inclusive customer communications platform available for utility customers as it is provided directly to each and every customer. Utility customers can review information about the CEIP, specific and extensive draft documents and provide comments or feedback related to the 2026-2029 CEIP through comment portal that was embedded on the CEIP webpage. The comment period was open from August 2nd, 2025 through October 24th, 2025. Clark Public Utilities also hosted a public workshop on September 24th, 2025 with a variety of community-based organizations (CBOs) and local low-income service providers with the goal of gathering feedback and input to verify and validate identified vulnerable populations in our service territory. This expert insight was used to help shape the customer benefit indicators (CBIs) for the 2026-2029 CEIP. Attendees of this public workshop recieved and completed an online survey on equity topics included in the CEIP and responses informed the equity sections of our CEIP. | F2: =Barriers_to_Public_Partic -> Barriers to public participation are unique to individual customers based on their individual circumstances. Acknowledging that, there are also known most common barriers to participation including: Language barriers: Per US Census Bureau, approximately 15% of residents in our service territory are non-native English speakers. Spanish and Russian are the two most commonly spoken native laguages aside from English. Competing priorities: external factors such as inflation, cost of living increases, financial worry and others compete for time and priority for customers. Especially those within vulnerable populations and/or with limited income. Clark Public Utilities has operated a comprehensive customer research program for decades. The research program studies, measures, aggregates and analyzes customer satisfaction, preferences, priorities and other factors. This work shows clear indication that that overwhelming majority of customers top priorities are reliability and cost. Even more so the last five years. While many do indicate some level of importance around topics included in CETA/CEIP like being a leader in renewable energy, it's historically and consistently ranked as less important. Again, especially the last few years. This relationship could be characterized as reliability and lowest possible cost being stated "needs" of nearly all customers while the other topics around renewable energy, conservation, etc. being "nice to haves." Many customers simply don't have the time or energy to invest in nuanced utility policy discussions. | G2: =Reasonable_Accomodations -> Language barriers: The utility website (clarkpublicutililties.com) includes accessibility tools that translate the website in it's entirety to any language. With Spanish and Russian being the two most commonly spoken languages outside of English in our service territory, we also created Spanish and Russian translated versions of our 2026-2029 CEIP fact sheet. Competing priorities: Engagement requires voluntary buy-in from community members and the decision to actively participate remains with individuals. While we can't manufacture enthusiasm where it doesn't exist, we can make the process as accessible as possible. Accomodations provided to reduce this barrier include the noted translation and accessiblity tools available on the CEIP webpage, plain language explanation of the CEIP and invitation to participate in the process through our Currents newsletter as noted elsewhere and with simple one-pager informational sheets about the process and opportunities to engage. | H2: =Incorp_Public_Comments -> The community-based organizations (CBOs) and low-income service providers who completed the CEIP equity topic survey confirmed that the utility has identified appropriate factors for recognizing vulnerable populations in our service territory. They also agreed that all three factors included in our CEIP are within the utility's sphere of influence. Additionally, these organizations confirmed that the utility's customer benefit indicators are appropriate measures for ensuring an equitable transition to a clean energy future. Customer comments received during the customer comment period showed many specific actions in the CEIP aligned with the overall themes that emerged. These include the development of new clean energy programs and energy assistance programs. | I2: =CEIP_Consist_RP -> Yes | J2: =CEIP_Consist_CEAP -> Yes | K2: =SAs_Consist_RPandCEAP -> The specific actions detailed in our CEIP PDF report are consistent with our integrated resource plan and clean energy action plan because they are the same. | L2: =Resource_Plan_Hyperlink -> https://www.clarkpublicutilities.com/wp-content/uploads/2024/08/CPU-2024-IRP_FINAL-Version-2-BPA-LF.pdf | M2: =RA_Standard -> As a BPA Load Following customer Clark Public Utilities participates in WRAP through BPA. The Qualified Capacity Contribution of Clark Public Utilities’ owned and contracted for resources are included in BPA’s portfolio of WRAP resources. Clark Public Utilities load will be included in WRAP along with the loads of BPA’s other Load Following customers. Clark Public Utilities WRAP obligations are included in Clark Public Utilities’ BPA Provider of Choice contract. Under the contract any WRAP penalties assessed to BPA that are caused by Clark Public Utilities not meeting its contractual obligations will be passed on to Clark Public Utilities. | N2: =RA_Measurement_Methods -> WRAP participants plan to a common RA standard. The program developed common capacity counting methods for generating resources and allows for the pooling of resources to meet the reliability needs of participants and unlock diversity benefits. A centralized entity administers and executes the RA program on behalf of members.
